Publisher Label,Publisher URI,"Supplier ID","Supplier","Invoice No.","Amount (£)","Purpose","Transaction Number","Payment Date","Organisational Unit","Cost Centre(T)","Internal Category Number"
"Wolverhampton City Council","http://opendatacommunities.org/id/metropolitan-district-council/wolverhampton","708554","Walsall Healthcare NHS Trust","G067249","7,340.00","TPP - Public Health Contracts","130185059","23/08/2017","Contracts","Sexual Health","R5060"
"Wolverhampton City Council","http://opendatacommunities.org/id/metropolitan-district-council/wolverhampton","708554","Walsall Healthcare NHS Trust","G067342","14,182.00","TPP - Public Health Contracts","130185060","23/08/2017","Contracts","Sexual Health","R5060"
"Wolverhampton City Council","http://opendatacommunities.org/id/metropolitan-district-council/wolverhampton","708554","Walsall Healthcare NHS Trust","G067259","563.00","TPP - Public Health Contracts","130183097","09/08/2017","Contracts","Sexual Health","R5060"
"Wolverhampton City Council","http://opendatacommunities.org/id/metropolitan-district-council/wolverhampton","708554","Walsall Healthcare NHS Trust","G067348","338.00","TPP - Public Health Contracts","130183098","23/08/2017","Contracts","Sexual Health","R5060"
"Wolverhampton City Council","http://opendatacommunities.org/id/metropolitan-district-council/wolverhampton","708556","Walsall Metropolitan Borough Council","67725420170814","1,350.00","TPP - Day Care","190364934","16/08/2017","Learning Disabilities Care Purchasing","LD Care Purchasing (Spot Placements)","R5430"
"Wolverhampton City Council","http://opendatacommunities.org/id/metropolitan-district-council/wolverhampton","708556","Walsall Metropolitan Borough Council","67445720170814","1,350.00","TPP - Day Care","190364932","16/08/2017","Learning Disabilities Care Purchasing","LD Care Purchasing (Spot Placements)","R5430"
"Wolverhampton City Council","http://opendatacommunities.org/id/metropolitan-district-council/wolverhampton","708556","Walsall Metropolitan Borough Council","68233820170814","1,296.00","TPP - Day Care","190364935","16/08/2017","Learning Disabilities Care Purchasing","LD Care Purchasing (Spot Placements)","R5430"
"Wolverhampton City Council","http://opendatacommunities.org/id/metropolitan-district-council/wolverhampton","708556","Walsall Metropolitan Borough Council","67622220170814","1,080.00","TPP - Day Care","190364933","16/08/2017","Learning Disabilities Care Purchasing","LD Care Purchasing (Spot Placements)","R5430"
"Wolverhampton City Council","http://opendatacommunities.org/id/metropolitan-district-council/wolverhampton","708566","Warners Private Hire","45","1,232.00","Client Transport","130182441","16/08/2017","School Planning & Resources","Special - Transport","R3042"
"Wolverhampton City Council","http://opendatacommunities.org/id/metropolitan-district-council/wolverhampton","708569","Warwick I C Systems Limited","12200","16,109.00","Computing - Purchase of Software","130183907","11/08/2017","Human Resources","HR Advice","R4531"
"Wolverhampton City Council","http://opendatacommunities.org/id/metropolitan-district-council/wolverhampton","708573","Warwickshire County Council","10176349","3,340.00","TPP - Payments to Local Authorities","130180488","09/08/2017","Public Protection","EHTS Operational Costs","R5100"
"Wolverhampton City Council","http://opendatacommunities.org/id/metropolitan-district-council/wolverhampton","708573","Warwickshire County Council","10176349","936.00","Services - Fees and Charges","130180488","09/08/2017","Public Protection","EHTS Operational Costs","R4401"
"Wolverhampton City Council","http://opendatacommunities.org/id/metropolitan-district-council/wolverhampton","708581","Wates Construction Limited","103968","154,425.00","Construction and Conversion","130184941","16/08/2017","-","Decent Homes - Stock Improvements","C1100"
"Wolverhampton City Council","http://opendatacommunities.org/id/metropolitan-district-council/wolverhampton","708581","Wates Construction Limited","103976","89,646.00","Construction and Conversion","130185061","18/08/2017","-","New Build infill schemes","C1100"
"Wolverhampton City Council","http://opendatacommunities.org/id/metropolitan-district-council/wolverhampton","708581","Wates Construction Limited","103960","394,364.00","Construction and Conversion","130184938","16/08/2017","-","Roof Refurbishment Programme","C1100"
"Wolverhampton City Council","http://opendatacommunities.org/id/metropolitan-district-council/wolverhampton","708581","Wates Construction Limited","103522","-223,491.00","Construction and Conversion","130183002","16/08/2017","-","Roof Refurbishment Programme","C1100"
"Wolverhampton City Council","http://opendatacommunities.org/id/metropolitan-district-council/wolverhampton","708581","Wates Construction Limited","103965","336,288.00","Construction and Conversion","130185273","23/08/2017","-","Merridale Court","C1100"
"Wolverhampton City Council","http://opendatacommunities.org/id/metropolitan-district-council/wolverhampton","708581","Wates Construction Limited","103967","54,770.00","Construction and Conversion","130184940","16/08/2017","-","Fire Safety Improvements","C1100"
"Wolverhampton City Council","http://opendatacommunities.org/id/metropolitan-district-council/wolverhampton","708588","WBP Visual Solutions Limited","110517","474.55","Services - Professional Fees","130181564","16/08/2017","Visitor Economy","Wildlife Photogragher of the year - NPO ACE WAG","R4400"
"Wolverhampton City Council","http://opendatacommunities.org/id/metropolitan-district-council/wolverhampton","708588","WBP Visual Solutions Limited","110504","488.50","Services - Professional Fees","130179642","02/08/2017","Visitor Economy","Jane & Louise Wilson - NPO ACE WAG","R4400"
"Wolverhampton City Council","http://opendatacommunities.org/id/metropolitan-district-council/wolverhampton","708601","Webgibb Welding Limited","C6734","125.00","Equipment - Purchase","130175060","04/08/2017","Leisure Services","Aldersley Leisure Village","R4000"
"Wolverhampton City Council","http://opendatacommunities.org/id/metropolitan-district-council/wolverhampton","708606","Wednesfield Community Association","WCC/AF/2/17","62.50","Services - Professional Fees","130183491","09/08/2017","Housing","Wholly Owned Company - Operations","R4400"
"Wolverhampton City Council","http://opendatacommunities.org/id/metropolitan-district-council/wolverhampton","708606","Wednesfield Community Association","WCC/AF/2/17","50.00","Services - Professional Fees","130183491","09/08/2017","Housing","Wholly Owned Company - Operations","R4400"
"Wolverhampton City Council","http://opendatacommunities.org/id/metropolitan-district-council/wolverhampton","708606","Wednesfield Community Association","WCC/AF/1/17","40.63","Services - Professional Fees","130183490","09/08/2017","Housing","Wholly Owned Company - Operations","R4400"
"Wolverhampton City Council","http://opendatacommunities.org/id/metropolitan-district-council/wolverhampton","708606","Wednesfield Community Association","PCLibrary/1","44.50","Room Hire","130182602","02/08/2017","Strategic Organisation Development","Global Budgets","R2201"
"Wolverhampton City Council","http://opendatacommunities.org/id/metropolitan-district-council/wolverhampton","708615","Weight Watchers UK Limited","202752","142.50","TPP - Public Health Contracts","130185467","23/08/2017","Contracts","Healthy Lifestyles","R5060"
"Wolverhampton City Council","http://opendatacommunities.org/id/metropolitan-district-council/wolverhampton","708615","Weight Watchers UK Limited","202713 - B","7,125.00","TPP - Public Health Contracts","130180754","23/08/2017","Contracts","Healthy Lifestyles","R5060"
"Wolverhampton City Council","http://opendatacommunities.org/id/metropolitan-district-council/wolverhampton","708615","Weight Watchers UK Limited","202713 - B","-7,125.00","TPP - Public Health Contracts","130180754","23/08/2017","Contracts","Healthy Lifestyles","R5060"
"Wolverhampton City Council","http://opendatacommunities.org/id/metropolitan-district-council/wolverhampton","708615","Weight Watchers UK Limited","202713 - B","7,125.00","TPP - Public Health Contracts","130180754","23/08/2017","Contracts","Healthy Lifestyles","R5060"
"Wolverhampton City Council","http://opendatacommunities.org/id/metropolitan-district-council/wolverhampton","708616","Weightmans Llp","My Ref: EL110027/LG1 - 01645497","18.04","Insurance - General","190362859","04/08/2017","Audit Services","Legal Liability","R4962"
"Wolverhampton City Council","http://opendatacommunities.org/id/metropolitan-district-council/wolverhampton","708649","West Midlands Employers","6395","600.00","Training Expenses","130184411","16/08/2017","Human Resources","Centralised Training","R1650"
"Wolverhampton City Council","http://opendatacommunities.org/id/metropolitan-district-council/wolverhampton","708649","West Midlands Employers","6409","2,475.00","Training Expenses","130184709","16/08/2017","Human Resources","Centralised Training","R1650"
"Wolverhampton City Council","http://opendatacommunities.org/id/metropolitan-district-council/wolverhampton","708650","West Midlands Fire Service","600037207","50.00","Room Hire","130181231","02/08/2017","Healthier Places Service","Healthy Lifestyles Team","R2201"
"Wolverhampton City Council","http://opendatacommunities.org/id/metropolitan-district-council/wolverhampton","708650","West Midlands Fire Service","600037241","534.60","Training Expenses","130181945","09/08/2017","Human Resources","Centralised Training","R1650"
"Wolverhampton City Council","http://opendatacommunities.org/id/metropolitan-district-council/wolverhampton","708656","West Midlands Travel Limited","SLIN/00037511","230.00","Client Transport","130184208","30/08/2017","Skills","Connexions Contract","R3042"
"Wolverhampton City Council","http://opendatacommunities.org/id/metropolitan-district-council/wolverhampton","708656","West Midlands Travel Limited","SLIN/00037511","6.85","Client Transport","130184208","30/08/2017","Skills","Connexions Contract","R3042"
"Wolverhampton City Council","http://opendatacommunities.org/id/metropolitan-district-council/wolverhampton","708656","West Midlands Travel Limited","XASI/00100255","778.75","Public Transport","130183492","23/08/2017","School Planning & Resources","Secondary- Transport","R3300"
"Wolverhampton City Council","http://opendatacommunities.org/id/metropolitan-district-council/wolverhampton","708656","West Midlands Travel Limited","XAS1/00099911","713.75","Public Transport","130181566","09/08/2017","School Planning & Resources","Secondary- Transport","R3300"
"Wolverhampton City Council","http://opendatacommunities.org/id/metropolitan-district-council/wolverhampton","708656","West Midlands Travel Limited","XASI/00100417","87.50","Public Transport","130183493","25/08/2017","School Planning & Resources","Secondary- Transport","R3300"
"Wolverhampton City Council","http://opendatacommunities.org/id/metropolitan-district-council/wolverhampton","708656","West Midlands Travel Limited","XASI/00099934","813.75","Public Transport","130181567","09/08/2017","School Planning & Resources","Secondary- Transport","R3300"
"Wolverhampton City Council","http://opendatacommunities.org/id/metropolitan-district-council/wolverhampton","708671","Weston Sawmill & Nursery","27968","142.50","Equipment - Purchase","130179239","09/08/2017","Bereavement Services","Crematorium","R4000"
"Wolverhampton City Council","http://opendatacommunities.org/id/metropolitan-district-council/wolverhampton","708677","WHampton Homes Limited-Property Service","260002105X","699.68","Grants paid out","130180073","02/08/2017","-","Housing General Fund General Schemes - Small Works Assistance (SWA)","C5000"
"Wolverhampton City Council","http://opendatacommunities.org/id/metropolitan-district-council/wolverhampton","708677","WHampton Homes Limited-Property Service","2600021102","75.37","Grants paid out","130180494","09/08/2017","-","Housing General Fund General Schemes - Small Works Assistance (SWA)","C5000"
"Wolverhampton City Council","http://opendatacommunities.org/id/metropolitan-district-council/wolverhampton","708700","Wildlife Trust For B�Ham & Black Cty","792","5,000.00","Services - Professional Fees","130185275","23/08/2017","Planning","Planning","R4400"
"Wolverhampton City Council","http://opendatacommunities.org/id/metropolitan-district-council/wolverhampton","708701","Wildside Activity Centre","17/2123","135.50","Training Expenses","130181568","16/08/2017","Audit Services","Health & Safety","R1650"
"Wolverhampton City Council","http://opendatacommunities.org/id/metropolitan-district-council/wolverhampton","708701","Wildside Activity Centre","17/2129","98.50","Training Expenses","130183304","25/08/2017","Audit Services","Health & Safety","R1650"
"Wolverhampton City Council","http://opendatacommunities.org/id/metropolitan-district-council/wolverhampton","708705","Willenhall Engine Centre","64016","351.81","Services - Professional Fees","190363758","09/08/2017","Fleet Services","Fleet Management","R4400"
"Wolverhampton City Council","http://opendatacommunities.org/id/metropolitan-district-council/wolverhampton","708708","William Gough Limited","82478","40.00","R&M - Departmental planned (external)","130181237","23/08/2017","Maintenance Programme","Centralised R&M","R2001"
"Wolverhampton City Council","http://opendatacommunities.org/id/metropolitan-district-council/wolverhampton","708708","William Gough Limited","82493","214.43","R&M - Departmental planned (external)","130181952","23/08/2017","Maintenance Programme","Centralised R&M","R2001"
"Wolverhampton City Council","http://opendatacommunities.org/id/metropolitan-district-council/wolverhampton","708708","William Gough Limited","82524","49.03","R&M - Departmental planned (external)","130182142","23/08/2017","Maintenance Programme","Centralised R&M","R2001"
"Wolverhampton City Council","http://opendatacommunities.org/id/metropolitan-district-council/wolverhampton","708708","William Gough Limited","82485","61.45","R&M - Departmental planned (external)","130181243","23/08/2017","Maintenance Programme","Centralised R&M","R2001"
"Wolverhampton City Council","http://opendatacommunities.org/id/metropolitan-district-council/wolverhampton","708708","William Gough Limited","82488","400.02","R&M - Departmental planned (external)","130181947","23/08/2017","Maintenance Programme","Civic Centre Repairs & Maintenance","R2001"
"Wolverhampton City Council","http://opendatacommunities.org/id/metropolitan-district-council/wolverhampton","708708","William Gough Limited","82162","116.23","R&M - Departmental planned (external)","130182132","23/08/2017","Maintenance Programme","Centralised R&M","R2001"
"Wolverhampton City Council","http://opendatacommunities.org/id/metropolitan-district-council/wolverhampton","708708","William Gough Limited","82555","40.00","R&M - Departmental planned (external)","130182288","23/08/2017","Maintenance Programme","Centralised R&M","R2001"
"Wolverhampton City Council","http://opendatacommunities.org/id/metropolitan-district-council/wolverhampton","708708","William Gough Limited","82501","40.00","R&M - Departmental planned (external)","130181959","23/08/2017","Facilities Management","Magistrates","R2001"
"Wolverhampton City Council","http://opendatacommunities.org/id/metropolitan-district-council/wolverhampton","708708","William Gough Limited","82510","30,832.38","R&M - Departmental planned (external)","130182138","23/08/2017","Corporate Asset Management","Centralised Planned Maintenance","R2001"
"Wolverhampton City Council","http://opendatacommunities.org/id/metropolitan-district-council/wolverhampton","708708","William Gough Limited","82409","136.29","R&M - Departmental planned (external)","130178998","04/08/2017","Maintenance Programme","Centralised R&M","R2001"
"Wolverhampton City Council","http://opendatacommunities.org/id/metropolitan-district-council/wolverhampton","708708","William Gough Limited","82379","372.55","R&M - Departmental planned (external)","130178105","25/08/2017","Maintenance Programme","Centralised R&M","R2001"
"Wolverhampton City Council","http://opendatacommunities.org/id/metropolitan-district-council/wolverhampton","708708","William Gough Limited","82392","160.36","R&M - Departmental planned (external)","130178749","25/08/2017","Maintenance Programme","Centralised R&M","R2001"
"Wolverhampton City Council","http://opendatacommunities.org/id/metropolitan-district-council/wolverhampton","708708","William Gough Limited","82484","160.33","R&M - Departmental planned (external)","130181242","16/08/2017","Maintenance Programme","Centralised R&M","R2001"
"Wolverhampton City Council","http://opendatacommunities.org/id/metropolitan-district-council/wolverhampton","708708","William Gough Limited","82466","59.77","R&M - Departmental planned (external)","130181086","16/08/2017","Facilities Management","Management of Vacant Properties","R2001"
"Wolverhampton City Council","http://opendatacommunities.org/id/metropolitan-district-council/wolverhampton","708708","William Gough Limited","82310","221.85","R&M - Departmental planned (external)","130177420","02/08/2017","Maintenance Programme","Centralised R&M","R2001"
"Wolverhampton City Council","http://opendatacommunities.org/id/metropolitan-district-council/wolverhampton","708708","William Gough Limited","82245","83.47","R&M - Departmental planned (external)","130175077","02/08/2017","Bereavement Services","Cemeteries","R2001"
"Wolverhampton City Council","http://opendatacommunities.org/id/metropolitan-district-council/wolverhampton","708708","William Gough Limited","82353","920.44","R&M - Departmental planned (external)","130177938","02/08/2017","Bereavement Services","Cemeteries","R2001"
"Wolverhampton City Council","http://opendatacommunities.org/id/metropolitan-district-council/wolverhampton","708708","William Gough Limited","82483","90.96","R&M - Departmental planned (external)","130181241","16/08/2017","Maintenance Programme","Centralised R&M","R2001"
"Wolverhampton City Council","http://opendatacommunities.org/id/metropolitan-district-council/wolverhampton","708708","William Gough Limited","82419","40.00","R&M - Departmental planned (external)","130179007","02/08/2017","Maintenance Programme","Centralised R&M","R2001"
"Wolverhampton City Council","http://opendatacommunities.org/id/metropolitan-district-council/wolverhampton","708708","William Gough Limited","82416","55.84","R&M - Departmental planned (external)","130179004","02/08/2017","Maintenance Programme","Centralised R&M","R2001"
"Wolverhampton City Council","http://opendatacommunities.org/id/metropolitan-district-council/wolverhampton","708708","William Gough Limited","82402","77.04","R&M - Departmental planned (external)","130178755","02/08/2017","Facilities Management","Magistrates","R2001"
"Wolverhampton City Council","http://opendatacommunities.org/id/metropolitan-district-council/wolverhampton","708708","William Gough Limited","82397","265.19","R&M - Departmental planned (external)","130178751","02/08/2017","Facilities Management","Magistrates","R2001"
"Wolverhampton City Council","http://opendatacommunities.org/id/metropolitan-district-council/wolverhampton","708708","William Gough Limited","82377","40.00","R&M - Departmental planned (external)","130178104","02/08/2017","Maintenance Programme","Centralised R&M","R2001"
"Wolverhampton City Council","http://opendatacommunities.org/id/metropolitan-district-council/wolverhampton","708708","William Gough Limited","82421","142.09","R&M - Departmental planned (external)","130179009","02/08/2017","Markets","Wolverhampton Indoor and Open Market","R2001"
"Wolverhampton City Council","http://opendatacommunities.org/id/metropolitan-district-council/wolverhampton","708708","William Gough Limited","82361","146.06","R&M - Departmental planned (external)","130178090","30/08/2017","Maintenance Programme","Centralised R&M","R2001"
"Wolverhampton City Council","http://opendatacommunities.org/id/metropolitan-district-council/wolverhampton","708708","William Gough Limited","82216","339.33","R&M - Departmental planned (external)","130178995","25/08/2017","Maintenance Programme","Centralised R&M","R2001"
"Wolverhampton City Council","http://opendatacommunities.org/id/metropolitan-district-council/wolverhampton","708708","William Gough Limited","82430","156.82","R&M - Departmental planned (external)","130179015","25/08/2017","Maintenance Programme","Centralised R&M","R2001"
"Wolverhampton City Council","http://opendatacommunities.org/id/metropolitan-district-council/wolverhampton","708708","William Gough Limited","82154","67.50","R&M - Departmental planned (external)","130174091","02/08/2017","Maintenance Programme","Centralised R&M","R2001"
"Wolverhampton City Council","http://opendatacommunities.org/id/metropolitan-district-council/wolverhampton","708708","William Gough Limited","82350","81.65","R&M - Departmental planned (external)","130177935","02/08/2017","Maintenance Programme","Centralised R&M","R2001"
"Wolverhampton City Council","http://opendatacommunities.org/id/metropolitan-district-council/wolverhampton","708708","William Gough Limited","82387","254.77","R&M - Departmental planned (external)","130178748","02/08/2017","Maintenance Programme","Centralised R&M","R2001"
"Wolverhampton City Council","http://opendatacommunities.org/id/metropolitan-district-council/wolverhampton","708708","William Gough Limited","82428","40.00","R&M - Departmental planned (external)","130179013","02/08/2017","Markets","Bilston Market and Licensed Operations","R2001"
"Wolverhampton City Council","http://opendatacommunities.org/id/metropolitan-district-council/wolverhampton","708708","William Gough Limited","82398","40.00","R&M - Departmental planned (external)","130178752","02/08/2017","Maintenance Programme","Centralised R&M","R2001"
"Wolverhampton City Council","http://opendatacommunities.org/id/metropolitan-district-council/wolverhampton","708708","William Gough Limited","82418","152.10","R&M - Departmental planned (external)","130179006","02/08/2017","Maintenance Programme","Centralised R&M","R2001"
"Wolverhampton City Council","http://opendatacommunities.org/id/metropolitan-district-council/wolverhampton","708708","William Gough Limited","82407","731.28","Construction and Conversion","130178996","02/08/2017","-","Corporate Asset Management","C1100"
"Wolverhampton City Council","http://opendatacommunities.org/id/metropolitan-district-council/wolverhampton","708708","William Gough Limited","82345","2,929.73","R&M - Departmental planned (external)","130177931","02/08/2017","Maintenance Programme","Centralised R&M","R2001"
"Wolverhampton City Council","http://opendatacommunities.org/id/metropolitan-district-council/wolverhampton","708708","William Gough Limited","82348","49.95","R&M - Departmental planned (external)","130177933","02/08/2017","Maintenance Programme","Centralised R&M","R2001"
"Wolverhampton City Council","http://opendatacommunities.org/id/metropolitan-district-council/wolverhampton","708708","William Gough Limited","82451","288.71","R&M - Departmental planned (external)","130180944","16/08/2017","Facilities Management","Magistrates","R2001"
"Wolverhampton City Council","http://opendatacommunities.org/id/metropolitan-district-council/wolverhampton","708708","William Gough Limited","82167","53.80","R&M - Departmental planned (external)","130184013","16/08/2017","Maintenance Programme","Centralised R&M","R2001"
"Wolverhampton City Council","http://opendatacommunities.org/id/metropolitan-district-council/wolverhampton","708708","William Gough Limited","82443","51.90","R&M - Departmental planned (external)","130180937","16/08/2017","Maintenance Programme","Centralised R&M","R2001"
"Wolverhampton City Council","http://opendatacommunities.org/id/metropolitan-district-council/wolverhampton","708708","William Gough Limited","82467","40.00","R&M - Departmental planned (external)","130181087","16/08/2017","Bereavement Services","Cemeteries","R2001"
"Wolverhampton City Council","http://opendatacommunities.org/id/metropolitan-district-council/wolverhampton","708708","William Gough Limited","82556","872.82","R&M - Departmental planned (external)","130182289","30/08/2017","Maintenance Programme","Centralised R&M","R2001"
"Wolverhampton City Council","http://opendatacommunities.org/id/metropolitan-district-council/wolverhampton","708708","William Gough Limited","82435","841.57","R&M - Departmental planned (external)","130180935","09/08/2017","Facilities Management","Caretakers Community Centre","R2001"
"Wolverhampton City Council","http://opendatacommunities.org/id/metropolitan-district-council/wolverhampton","708708","William Gough Limited","82491","40.00","R&M - Departmental planned (external)","130181950","23/08/2017","Maintenance Programme","Centralised R&M","R2001"
"Wolverhampton City Council","http://opendatacommunities.org/id/metropolitan-district-council/wolverhampton","708708","William Gough Limited","82497","146.06","R&M - Departmental planned (external)","130181956","23/08/2017","Maintenance Programme","Centralised R&M","R2001"
"Wolverhampton City Council","http://opendatacommunities.org/id/metropolitan-district-council/wolverhampton","708708","William Gough Limited","82557","40.00","R&M - Departmental planned (external)","130182290","23/08/2017","Maintenance Programme","Centralised R&M","R2001"
"Wolverhampton City Council","http://opendatacommunities.org/id/metropolitan-district-council/wolverhampton","708708","William Gough Limited","82511","14,364.45","Construction and Conversion","130182139","23/08/2017","-","Capital Maintenance - Roof / Ceilings Replacements","C1100"
"Wolverhampton City Council","http://opendatacommunities.org/id/metropolitan-district-council/wolverhampton","708708","William Gough Limited","82548","1,133.53","R&M - Departmental planned (external)","130182283","23/08/2017","Maintenance Programme","Civic Centre Repairs & Maintenance","R2001"
"Wolverhampton City Council","http://opendatacommunities.org/id/metropolitan-district-council/wolverhampton","708708","William Gough Limited","82525","40.00","R&M - Departmental planned (external)","130182143","23/08/2017","Maintenance Programme","Centralised R&M","R2001"
"Wolverhampton City Council","http://opendatacommunities.org/id/metropolitan-district-council/wolverhampton","708708","William Gough Limited","82367","40.00","R&M - Departmental planned (external)","130178095","23/08/2017","Maintenance Programme","Centralised R&M","R2001"
"Wolverhampton City Council","http://opendatacommunities.org/id/metropolitan-district-council/wolverhampton","708708","William Gough Limited","82487","181.70","R&M - Departmental planned (external)","130181946","23/08/2017","Maintenance Programme","Centralised R&M","R2001"
"Wolverhampton City Council","http://opendatacommunities.org/id/metropolitan-district-council/wolverhampton","708708","William Gough Limited","82481","223.52","R&M - Departmental planned (external)","130181240","16/08/2017","Maintenance Programme","Centralised R&M","R2001"
"Wolverhampton City Council","http://opendatacommunities.org/id/metropolitan-district-council/wolverhampton","708708","William Gough Limited","82341","239.21","R&M - Departmental planned (external)","130177927","02/08/2017","Maintenance Programme","Centralised R&M","R2001"
"Wolverhampton City Council","http://opendatacommunities.org/id/metropolitan-district-council/wolverhampton","708708","William Gough Limited","82427","94.62","R&M - Departmental planned (external)","130179012","02/08/2017","Markets","Bilston Market and Licensed Operations","R2001"
"Wolverhampton City Council","http://opendatacommunities.org/id/metropolitan-district-council/wolverhampton","708708","William Gough Limited","82432","40.00","R&M - Departmental planned (external)","130179016","02/08/2017","Maintenance Programme","Centralised R&M","R2001"
"Wolverhampton City Council","http://opendatacommunities.org/id/metropolitan-district-council/wolverhampton","708708","William Gough Limited","82308","64.09","R&M - Departmental planned (external)","130177418","02/08/2017","Maintenance Programme","Centralised R&M","R2001"
"Wolverhampton City Council","http://opendatacommunities.org/id/metropolitan-district-council/wolverhampton","708708","William Gough Limited","82309","42.13","R&M - Departmental planned (external)","130177419","02/08/2017","Maintenance Programme","Centralised R&M","R2001"
"Wolverhampton City Council","http://opendatacommunities.org/id/metropolitan-district-council/wolverhampton","708708","William Gough Limited","82408","40.00","R&M - Departmental planned (external)","130178997","02/08/2017","Maintenance Programme","Centralised R&M","R2001"
"Wolverhampton City Council","http://opendatacommunities.org/id/metropolitan-district-council/wolverhampton","708708","William Gough Limited","82415","149.29","R&M - Departmental planned (external)","130179003","02/08/2017","Maintenance Programme","Centralised R&M","R2001"
"Wolverhampton City Council","http://opendatacommunities.org/id/metropolitan-district-council/wolverhampton","708708","William Gough Limited","82355","77.94","R&M - Departmental planned (external)","130178085","02/08/2017","Markets","Bilston Market and Licensed Operations","R2001"
"Wolverhampton City Council","http://opendatacommunities.org/id/metropolitan-district-council/wolverhampton","708708","William Gough Limited","82412","229.27","R&M - Departmental planned (external)","130179001","02/08/2017","Maintenance Programme","Centralised R&M","R2001"
"Wolverhampton City Council","http://opendatacommunities.org/id/metropolitan-district-council/wolverhampton","708708","William Gough Limited","82479","37.69","R&M - Departmental planned (external)","130181238","16/08/2017","Facilities Management","Magistrates","R2001"
"Wolverhampton City Council","http://opendatacommunities.org/id/metropolitan-district-council/wolverhampton","708708","William Gough Limited","82486","101.57","R&M - Departmental planned (external)","130181244","16/08/2017","Maintenance Programme","Centralised R&M","R2001"
"Wolverhampton City Council","http://opendatacommunities.org/id/metropolitan-district-council/wolverhampton","708708","William Gough Limited","82411","284.19","R&M - Departmental planned (external)","130179000","25/08/2017","Maintenance Programme","Centralised R&M","R2001"
"Wolverhampton City Council","http://opendatacommunities.org/id/metropolitan-district-council/wolverhampton","708708","William Gough Limited","82371","40.00","R&M - Departmental planned (external)","130178098","25/08/2017","Maintenance Programme","Centralised R&M","R2001"
"Wolverhampton City Council","http://opendatacommunities.org/id/metropolitan-district-council/wolverhampton","708708","William Gough Limited","82509","38,915.00","R&M - Departmental planned (external)","130182442","25/08/2017","Corporate Asset Management","Centralised Planned Maintenance","R2001"
"Wolverhampton City Council","http://opendatacommunities.org/id/metropolitan-district-council/wolverhampton","708708","William Gough Limited","82328","3,929.65","R&M - Departmental planned (external)","130184209","30/08/2017","Corporate Asset Management","Centralised Planned Maintenance","R2001"
"Wolverhampton City Council","http://opendatacommunities.org/id/metropolitan-district-council/wolverhampton","708708","William Gough Limited","82526","40.00","R&M - Departmental planned (external)","130182144","23/08/2017","Facilities Management","Magistrates","R2001"
"Wolverhampton City Council","http://opendatacommunities.org/id/metropolitan-district-council/wolverhampton","708708","William Gough Limited","82489","144.43","R&M - Departmental planned (external)","130181948","23/08/2017","Maintenance Programme","Centralised R&M","R2001"
"Wolverhampton City Council","http://opendatacommunities.org/id/metropolitan-district-council/wolverhampton","708708","William Gough Limited","82512","5,980.63","R&M - Departmental planned (external)","130182140","23/08/2017","Maintenance Programme","Centralised R&M","R2001"
"Wolverhampton City Council","http://opendatacommunities.org/id/metropolitan-district-council/wolverhampton","708708","William Gough Limited","82500","106.82","R&M - Departmental planned (external)","130181958","23/08/2017","Markets","Bilston Market and Licensed Operations","R2001"
"Wolverhampton City Council","http://opendatacommunities.org/id/metropolitan-district-council/wolverhampton","708708","William Gough Limited","82522","290.56","R&M - Departmental planned (external)","130182141","23/08/2017","Maintenance Programme","Civic Centre Repairs & Maintenance","R2001"
"Wolverhampton City Council","http://opendatacommunities.org/id/metropolitan-district-council/wolverhampton","708708","William Gough Limited","82472","40.00","R&M - Departmental planned (external)","130181092","23/08/2017","Markets","Bilston Market and Licensed Operations","R2001"
"Wolverhampton City Council","http://opendatacommunities.org/id/metropolitan-district-council/wolverhampton","708708","William Gough Limited","82476","92.46","R&M - Departmental planned (external)","130181235","23/08/2017","Maintenance Programme","Centralised R&M","R2001"
"Wolverhampton City Council","http://opendatacommunities.org/id/metropolitan-district-council/wolverhampton","708708","William Gough Limited","82492","40.00","R&M - Departmental planned (external)","130181951","23/08/2017","Maintenance Programme","Centralised R&M","R2001"
"Wolverhampton City Council","http://opendatacommunities.org/id/metropolitan-district-council/wolverhampton","708708","William Gough Limited","82477","40.00","R&M - Departmental planned (external)","130181236","23/08/2017","Bereavement Services","Cemeteries","R2001"
"Wolverhampton City Council","http://opendatacommunities.org/id/metropolitan-district-council/wolverhampton","708708","William Gough Limited","82495","40.00","R&M - Departmental planned (external)","130181954","23/08/2017","Maintenance Programme","Centralised R&M","R2001"
"Wolverhampton City Council","http://opendatacommunities.org/id/metropolitan-district-council/wolverhampton","708708","William Gough Limited","82503","118.86","Construction and Conversion","130181961","23/08/2017","-","Corporate Asset Management","C1100"
"Wolverhampton City Council","http://opendatacommunities.org/id/metropolitan-district-council/wolverhampton","708708","William Gough Limited","82365","253.02","R&M - Departmental planned (external)","130178094","23/08/2017","Maintenance Programme","Centralised R&M","R2001"
"Wolverhampton City Council","http://opendatacommunities.org/id/metropolitan-district-council/wolverhampton","708708","William Gough Limited","82502","144.43","R&M - Departmental planned (external)","130181960","23/08/2017","Maintenance Programme","Centralised R&M","R2001"
"Wolverhampton City Council","http://opendatacommunities.org/id/metropolitan-district-council/wolverhampton","708708","William Gough Limited","82532","63.52","R&M - Departmental planned (external)","130182272","23/08/2017","Maintenance Programme","Centralised R&M","R2001"
"Wolverhampton City Council","http://opendatacommunities.org/id/metropolitan-district-council/wolverhampton","708708","William Gough Limited","82530","40.00","R&M - Departmental planned (external)","130182146","23/08/2017","Maintenance Programme","Centralised R&M","R2001"
"Wolverhampton City Council","http://opendatacommunities.org/id/metropolitan-district-council/wolverhampton","708708","William Gough Limited","82494","228.07","R&M - Departmental planned (external)","130181953","23/08/2017","Maintenance Programme","Civic Centre Repairs & Maintenance","R2001"
"Wolverhampton City Council","http://opendatacommunities.org/id/metropolitan-district-council/wolverhampton","708708","William Gough Limited","82401","125.46","R&M - Departmental planned (external)","130178754","04/08/2017","Maintenance Programme","Centralised R&M","R2001"
"Wolverhampton City Council","http://opendatacommunities.org/id/metropolitan-district-council/wolverhampton","708708","William Gough Limited","82396","142.63","R&M - Departmental planned (external)","130178750","02/08/2017","Facilities Management","Magistrates","R2001"
"Wolverhampton City Council","http://opendatacommunities.org/id/metropolitan-district-council/wolverhampton","708708","William Gough Limited","82405","68.78","R&M - Departmental planned (external)","130178757","02/08/2017","Markets","Bilston Market and Licensed Operations","R2001"
"Wolverhampton City Council","http://opendatacommunities.org/id/metropolitan-district-council/wolverhampton","708708","William Gough Limited","82403","83.53","R&M - Departmental planned (external)","130178756","02/08/2017","Maintenance Programme","Centralised R&M","R2001"
"Wolverhampton City Council","http://opendatacommunities.org/id/metropolitan-district-council/wolverhampton","708708","William Gough Limited","82413","40.00","R&M - Departmental planned (external)","130179002","02/08/2017","Maintenance Programme","Centralised R&M","R2001"
"Wolverhampton City Council","http://opendatacommunities.org/id/metropolitan-district-council/wolverhampton","708708","William Gough Limited","82297","277.05","R&M - Departmental planned (external)","130177409","02/08/2017","Facilities Management","Magistrates","R2001"
"Wolverhampton City Council","http://opendatacommunities.org/id/metropolitan-district-council/wolverhampton","708708","William Gough Limited","82420","77.07","R&M - Departmental planned (external)","130179008","02/08/2017","Maintenance Programme","Centralised R&M","R2001"
"Wolverhampton City Council","http://opendatacommunities.org/id/metropolitan-district-council/wolverhampton","708708","William Gough Limited","82344","90.67","R&M - Departmental planned (external)","130177930","02/08/2017","Maintenance Programme","Centralised R&M","R2001"
"Wolverhampton City Council","http://opendatacommunities.org/id/metropolitan-district-council/wolverhampton","708708","William Gough Limited","82349","442.90","R&M - Departmental planned (external)","130177934","02/08/2017","Maintenance Programme","Centralised R&M","R2001"
"Wolverhampton City Council","http://opendatacommunities.org/id/metropolitan-district-council/wolverhampton","708708","William Gough Limited","82229","40.00","R&M - Departmental planned (external)","130175067","02/08/2017","Maintenance Programme","Centralised R&M","R2001"
"Wolverhampton City Council","http://opendatacommunities.org/id/metropolitan-district-council/wolverhampton","708708","William Gough Limited","82446","92.00","R&M - Departmental planned (external)","130180939","16/08/2017","Maintenance Programme","Centralised R&M","R2001"
"Wolverhampton City Council","http://opendatacommunities.org/id/metropolitan-district-council/wolverhampton","708708","William Gough Limited","82480","190.63","R&M - Departmental planned (external)","130181239","16/08/2017","Facilities Management","Magistrates","R2001"
"Wolverhampton City Council","http://opendatacommunities.org/id/metropolitan-district-council/wolverhampton","708708","William Gough Limited","82475","65.24","R&M - Departmental planned (external)","130181093","16/08/2017","Markets","Bilston Market and Licensed Operations","R2001"
"Wolverhampton City Council","http://opendatacommunities.org/id/metropolitan-district-council/wolverhampton","708708","William Gough Limited","82425","40.00","R&M - Departmental planned (external)","130179011","25/08/2017","Bereavement Services","Cemeteries","R2001"
"Wolverhampton City Council","http://opendatacommunities.org/id/metropolitan-district-council/wolverhampton","708708","William Gough Limited","82368","95.81","R&M - Departmental planned (external)","130178096","25/08/2017","Maintenance Programme","Centralised R&M","R2001"
"Wolverhampton City Council","http://opendatacommunities.org/id/metropolitan-district-council/wolverhampton","708708","William Gough Limited","82380","936.42","R&M - Departmental planned (external)","130178106","25/08/2017","Maintenance Programme","Centralised R&M","R2001"
"Wolverhampton City Council","http://opendatacommunities.org/id/metropolitan-district-council/wolverhampton","708708","William Gough Limited","82560","8,900.00","R&M - Departmental planned (external)","130183908","30/08/2017","Maintenance Programme","Centralised R&M","R2001"
"Wolverhampton City Council","http://opendatacommunities.org/id/metropolitan-district-council/wolverhampton","708728","Wishtrac House Limited","A19173","419.85","Computing - Purchase of Software","130182443","16/08/2017","Audit Services","Health & Safety","R4531"
"Wolverhampton City Council","http://opendatacommunities.org/id/metropolitan-district-council/wolverhampton","708737","Wmsnt Accessible Transport Ser Limited","5951","1,844.50","Client Transport","130182444","23/08/2017","School Planning & Resources","Special - Transport","R3042"
"Wolverhampton City Council","http://opendatacommunities.org/id/metropolitan-district-council/wolverhampton","708737","Wmsnt Accessible Transport Ser Limited","5953","1,658.25","Client Transport","130182446","23/08/2017","School Planning & Resources","Special - Transport","R3042"
"Wolverhampton City Council","http://opendatacommunities.org/id/metropolitan-district-council/wolverhampton","708737","Wmsnt Accessible Transport Ser Limited","5952","1,652.70","Client Transport","130182445","23/08/2017","School Planning & Resources","Special - Transport","R3042"
"Wolverhampton City Council","http://opendatacommunities.org/id/metropolitan-district-council/wolverhampton","708758","West Midlands Pension Fund - Wolverhampton City Council","4600038128/0070","27,900.00","Enhanced Pension","190363895","09/08/2017","Central Corporate Budgets","Pension Enhancements [Pensions Fund]","R1301"
"Wolverhampton City Council","http://opendatacommunities.org/id/metropolitan-district-council/wolverhampton","708758","West Midlands Pension Fund - Wolverhampton City Council","4600038146","27,951.60","Enhanced Pension","190363897","09/08/2017","Central Corporate Budgets","Local Government Reorganisation","R1301"
"Wolverhampton City Council","http://opendatacommunities.org/id/metropolitan-district-council/wolverhampton","708758","West Midlands Pension Fund - Wolverhampton City Council","4600038128/0008","1,465,000.00","Enhanced Pension","190363894","09/08/2017","Central Corporate Budgets","Pension Enhancements [Pensions Fund]","R1301"
"Wolverhampton City Council","http://opendatacommunities.org/id/metropolitan-district-council/wolverhampton","708758","West Midlands Pension Fund - Wolverhampton City Council","4600038066","350,000.00","Enhanced Pension","190363896","09/08/2017","Central Corporate Budgets","Local Government Reorganisation","R1301"
"Wolverhampton City Council","http://opendatacommunities.org/id/metropolitan-district-council/wolverhampton","708762","Wolverhampton Domestic Violence Forum","320.","77,500.00","TPP - Grants","130177161","04/08/2017","Community Safety","SWP - Domestic & Sexual Violence","R5001"
"Wolverhampton City Council","http://opendatacommunities.org/id/metropolitan-district-council/wolverhampton","708769","Wolverhampton Grand Theatre (1982) Ltd","INV00016","3,362.79","Room Hire","130185078","23/08/2017","School Planning & Resources","Learning Technologies","R2201"
"Wolverhampton City Council","http://opendatacommunities.org/id/metropolitan-district-council/wolverhampton","708770","Wolverhampton Homes Limited","2600021069","13,142.03","Adaptations","130179895","02/08/2017","Independent Living Service","Independent Living Service","R4411"
"Wolverhampton City Council","http://opendatacommunities.org/id/metropolitan-district-council/wolverhampton","708770","Wolverhampton Homes Limited","2600021078","30,000.00","Construction and Conversion","130180076","02/08/2017","-","Studies & Capitalised Salaries","C1100"
"Wolverhampton City Council","http://opendatacommunities.org/id/metropolitan-district-council/wolverhampton","708770","Wolverhampton Homes Limited","2600021354","13,069.24","Agency Staff","130183663","30/08/2017","Independent Living Service","Telecare","R1100"
"Wolverhampton City Council","http://opendatacommunities.org/id/metropolitan-district-council/wolverhampton","708770","Wolverhampton Homes Limited","2600021096","75,375.85","Construction and Conversion","130180496","09/08/2017","-","Decent Homes - Stock Improvements","C1100"
"Wolverhampton City Council","http://opendatacommunities.org/id/metropolitan-district-council/wolverhampton","708770","Wolverhampton Homes Limited","2600020662","5,469.46","Adaptations","130176846","30/08/2017","Independent Living Service","Independent Living Service","R4411"
"Wolverhampton City Council","http://opendatacommunities.org/id/metropolitan-district-council/wolverhampton","708770","Wolverhampton Homes Limited","2600021087","65.58","Adaptations","130180495","09/08/2017","Independent Living Service","Independent Living Service","R4411"
"Wolverhampton City Council","http://opendatacommunities.org/id/metropolitan-district-council/wolverhampton","708770","Wolverhampton Homes Limited","2600020653","13,442.90","Adaptations","130176845","30/08/2017","Independent Living Service","Independent Living Service","R4411"
"Wolverhampton City Council","http://opendatacommunities.org/id/metropolitan-district-council/wolverhampton","708776","Wolverhampton Radiators","34129","145.00","Equipment - Purchase","190365869","18/08/2017","Fleet Services","Fleet Management","R4000"
"Wolverhampton City Council","http://opendatacommunities.org/id/metropolitan-district-council/wolverhampton","708781","Wolverhampton Science Park Limited/Uow.","K011163","322.25","Equipment - Purchase","130182781","23/08/2017","Headstart","Headstart Phase 3","R4000"
"Wolverhampton City Council","http://opendatacommunities.org/id/metropolitan-district-council/wolverhampton","708781","Wolverhampton Science Park Limited/Uow.","K011130","95.00","Room Hire","130182448","23/08/2017","Headstart","Headstart Phase 3","R2201"
"Wolverhampton City Council","http://opendatacommunities.org/id/metropolitan-district-council/wolverhampton","708781","Wolverhampton Science Park Limited/Uow.","K011130","37.50","Catering","130182448","23/08/2017","Headstart","Headstart Phase 3","R4100"
"Wolverhampton City Council","http://opendatacommunities.org/id/metropolitan-district-council/wolverhampton","708781","Wolverhampton Science Park Limited/Uow.","K011161","163.50","Equipment - Purchase","130182780","23/08/2017","Headstart","Headstart Phase 3","R4000"
"Wolverhampton City Council","http://opendatacommunities.org/id/metropolitan-district-council/wolverhampton","708781","Wolverhampton Science Park Limited/Uow.","K011161","195.00","Room Hire","130182780","23/08/2017","Headstart","Headstart Phase 3","R2201"
"Wolverhampton City Council","http://opendatacommunities.org/id/metropolitan-district-council/wolverhampton","708781","Wolverhampton Science Park Limited/Uow.","K011194","37.10","Catering","130183004","23/08/2017","Headstart","Headstart Phase 3","R4100"
"Wolverhampton City Council","http://opendatacommunities.org/id/metropolitan-district-council/wolverhampton","708781","Wolverhampton Science Park Limited/Uow.","K011066","93.00","Training Expenses","130179647","02/08/2017","Audit Services","Health & Safety","R1650"
"Wolverhampton City Council","http://opendatacommunities.org/id/metropolitan-district-council/wolverhampton","708781","Wolverhampton Science Park Limited/Uow.","K011067","93.00","Training Expenses","130180077","02/08/2017","Audit Services","Health & Safety","R1650"
"Wolverhampton City Council","http://opendatacommunities.org/id/metropolitan-district-council/wolverhampton","708781","Wolverhampton Science Park Limited/Uow.","45055285","26.18","Comms - Telephone Call charges","130182148","18/08/2017","Headstart","Headstart Phase 3","R4505"
"Wolverhampton City Council","http://opendatacommunities.org/id/metropolitan-district-council/wolverhampton","708781","Wolverhampton Science Park Limited/Uow.","K011133","110.00","Room Hire","130182449","23/08/2017","Headstart","Headstart Phase 3","R2201"
"Wolverhampton City Council","http://opendatacommunities.org/id/metropolitan-district-council/wolverhampton","708781","Wolverhampton Science Park Limited/Uow.","K011133","92.00","Catering","130182449","23/08/2017","Headstart","Headstart Phase 3","R4100"
"Wolverhampton City Council","http://opendatacommunities.org/id/metropolitan-district-council/wolverhampton","708781","Wolverhampton Science Park Limited/Uow.","K011169","140.00","Room Hire","130182783","23/08/2017","Headstart","Headstart Phase 3","R2201"
"Wolverhampton City Council","http://opendatacommunities.org/id/metropolitan-district-council/wolverhampton","708781","Wolverhampton Science Park Limited/Uow.","K011169","159.00","Equipment - Purchase","130182783","23/08/2017","Headstart","Headstart Phase 3","R4000"
"Wolverhampton City Council","http://opendatacommunities.org/id/metropolitan-district-council/wolverhampton","708781","Wolverhampton Science Park Limited/Uow.","45055398","50.00","Printing","130182603","23/08/2017","Enterprise","Black Country Gold","R4300"
"Wolverhampton City Council","http://opendatacommunities.org/id/metropolitan-district-council/wolverhampton","708781","Wolverhampton Science Park Limited/Uow.","K011074","90.60","Catering","130179896","02/08/2017","Headstart","Headstart Phase 3","R4100"
"Wolverhampton City Council","http://opendatacommunities.org/id/metropolitan-district-council/wolverhampton","708781","Wolverhampton Science Park Limited/Uow.","K011074","95.00","Room Hire","130179896","02/08/2017","Headstart","Headstart Phase 3","R2201"
"Wolverhampton City Council","http://opendatacommunities.org/id/metropolitan-district-council/wolverhampton","708781","Wolverhampton Science Park Limited/Uow.","45053056","70.95","Comms - Telephone Call charges","130183494","09/08/2017","Headstart","Headstart Phase 3","R4505"
"Wolverhampton City Council","http://opendatacommunities.org/id/metropolitan-district-council/wolverhampton","708781","Wolverhampton Science Park Limited/Uow.","K011135","140.00","Room Hire","130182450","11/08/2017","Headstart","Headstart Phase 3","R2201"
"Wolverhampton City Council","http://opendatacommunities.org/id/metropolitan-district-council/wolverhampton","708781","Wolverhampton Science Park Limited/Uow.","K011135","186.00","Equipment - Purchase","130182450","11/08/2017","Headstart","Headstart Phase 3","R4000"
"Wolverhampton City Council","http://opendatacommunities.org/id/metropolitan-district-council/wolverhampton","708781","Wolverhampton Science Park Limited/Uow.","K011140","140.00","Room Hire","130182604","23/08/2017","Headstart","Headstart Phase 3","R2201"
"Wolverhampton City Council","http://opendatacommunities.org/id/metropolitan-district-council/wolverhampton","708781","Wolverhampton Science Park Limited/Uow.","K011140","229.50","Equipment - Purchase","130182604","23/08/2017","Headstart","Headstart Phase 3","R4000"
"Wolverhampton City Council","http://opendatacommunities.org/id/metropolitan-district-council/wolverhampton","708781","Wolverhampton Science Park Limited/Uow.","K011142","133.20","Room Hire","130182778","23/08/2017","Headstart","Headstart Phase 3","R2201"
"Wolverhampton City Council","http://opendatacommunities.org/id/metropolitan-district-council/wolverhampton","708781","Wolverhampton Science Park Limited/Uow.","K011142","140.00","Catering","130182778","23/08/2017","Headstart","Headstart Phase 3","R4100"
"Wolverhampton City Council","http://opendatacommunities.org/id/metropolitan-district-council/wolverhampton","708781","Wolverhampton Science Park Limited/Uow.","K011173","70.00","Room Hire","130182784","23/08/2017","Headstart","Headstart Phase 3","R2201"
"Wolverhampton City Council","http://opendatacommunities.org/id/metropolitan-district-council/wolverhampton","708781","Wolverhampton Science Park Limited/Uow.","K011173","14.00","Catering","130182784","23/08/2017","Headstart","Headstart Phase 3","R4100"
"Wolverhampton City Council","http://opendatacommunities.org/id/metropolitan-district-council/wolverhampton","708781","Wolverhampton Science Park Limited/Uow.","K011166","199.50","Equipment - Purchase","130182782","23/08/2017","Headstart","Headstart Phase 3","R4000"
"Wolverhampton City Council","http://opendatacommunities.org/id/metropolitan-district-council/wolverhampton","708781","Wolverhampton Science Park Limited/Uow.","K011166","195.00","Room Hire","130182782","23/08/2017","Headstart","Headstart Phase 3","R2201"
"Wolverhampton City Council","http://opendatacommunities.org/id/metropolitan-district-council/wolverhampton","708781","Wolverhampton Science Park Limited/Uow.","KO11059","11.79","Catering","130179401","02/08/2017","Headstart","Headstart Phase 3","R4100"
"Wolverhampton City Council","http://opendatacommunities.org/id/metropolitan-district-council/wolverhampton","708781","Wolverhampton Science Park Limited/Uow.","45055688","2,825.00","Rent","130183953","30/08/2017","Headstart","Headstart Phase 3","R2200"
"Wolverhampton City Council","http://opendatacommunities.org/id/metropolitan-district-council/wolverhampton","708781","Wolverhampton Science Park Limited/Uow.","K011159","195.00","Room Hire","130182779","23/08/2017","Headstart","Headstart Phase 3","R2201"
"Wolverhampton City Council","http://opendatacommunities.org/id/metropolitan-district-council/wolverhampton","708781","Wolverhampton Science Park Limited/Uow.","K011159","189.75","Equipment - Purchase","130182779","23/08/2017","Headstart","Headstart Phase 3","R4000"
"Wolverhampton City Council","http://opendatacommunities.org/id/metropolitan-district-council/wolverhampton","708781","Wolverhampton Science Park Limited/Uow.","K011128","95.00","Room Hire","130182447","23/08/2017","Headstart","Headstart Phase 3","R2201"
"Wolverhampton City Council","http://opendatacommunities.org/id/metropolitan-district-council/wolverhampton","708781","Wolverhampton Science Park Limited/Uow.","K011128","51.00","Catering","130182447","23/08/2017","Headstart","Headstart Phase 3","R4100"
"Wolverhampton City Council","http://opendatacommunities.org/id/metropolitan-district-council/wolverhampton","708781","Wolverhampton Science Park Limited/Uow.","K011120","87.00","Training Expenses","130182291","23/08/2017","Audit Services","Health & Safety","R1650"
"Wolverhampton City Council","http://opendatacommunities.org/id/metropolitan-district-council/wolverhampton","708781","Wolverhampton Science Park Limited/Uow.","45053287","105.36","Comms - Telephone Call charges","130183495","09/08/2017","Headstart","Headstart Phase 3","R4505"
"Wolverhampton City Council","http://opendatacommunities.org/id/metropolitan-district-council/wolverhampton","708787","Wolverhampton Travel","161711","1,400.00","Client Transport","130182292","02/08/2017","School Planning & Resources","Special - Transport","R3042"
"Wolverhampton City Council","http://opendatacommunities.org/id/metropolitan-district-council/wolverhampton","708787","Wolverhampton Travel","161711A","1,366.40","Client Transport","130182293","02/08/2017","School Planning & Resources","Special - Transport","R3042"
"Wolverhampton City Council","http://opendatacommunities.org/id/metropolitan-district-council/wolverhampton","708793","Wolverhampton Waste Services Limited","W46/17","365,287.00","TPP - Other contractors","130181441","16/08/2017","Waste and Recycling Service","Waste Disposal - General","R5099"
"Wolverhampton City Council","http://opendatacommunities.org/id/metropolitan-district-council/wolverhampton","708793","Wolverhampton Waste Services Limited","W47/17","8,735.19","TPP - Other contractors","130181442","16/08/2017","Waste and Recycling Service","Waste Disposal - General","R5099"
"Wolverhampton City Council","http://opendatacommunities.org/id/metropolitan-district-council/wolverhampton","708796","Wolverhampton Ymca "Badger Court"","P15139420170825","228.62","TPP - Placement Foster Care Inhouse","190368354","30/08/2017","Looked After Children","LAC Transitions Team","R5601"
"Wolverhampton City Council","http://opendatacommunities.org/id/metropolitan-district-council/wolverhampton","708796","Wolverhampton Ymca "Badger Court"","P15139420170825","7.00","TPP - Placement Foster Care Inhouse","190368354","30/08/2017","Looked After Children","LAC Transitions Team","R5601"
"Wolverhampton City Council","http://opendatacommunities.org/id/metropolitan-district-council/wolverhampton","708796","Wolverhampton Ymca "Badger Court"","P14916520170728","228.62","Client Allowances","190361746","02/08/2017","Looked After Children","LAC Transitions Team","R6301"
"Wolverhampton City Council","http://opendatacommunities.org/id/metropolitan-district-council/wolverhampton","708796","Wolverhampton Ymca "Badger Court"","P14916520170728","7.00","Client Allowances","190361746","02/08/2017","Looked After Children","LAC Transitions Team","R6301"
"Wolverhampton City Council","http://opendatacommunities.org/id/metropolitan-district-council/wolverhampton","708796","Wolverhampton Ymca "Badger Court"","P15022220170811","228.62","TPP - Placement Foster Care Inhouse","190364657","16/08/2017","Looked After Children","LAC Transitions Team","R5601"
"Wolverhampton City Council","http://opendatacommunities.org/id/metropolitan-district-council/wolverhampton","708796","Wolverhampton Ymca "Badger Court"","P15022220170811","7.00","TPP - Placement Foster Care Inhouse","190364657","16/08/2017","Looked After Children","LAC Transitions Team","R5601"
"Wolverhampton City Council","http://opendatacommunities.org/id/metropolitan-district-council/wolverhampton","708796","Wolverhampton Ymca "Badger Court"","P14986920170804","228.62","Client Allowances","190363622","09/08/2017","Looked After Children","LAC Transitions Team","R6301"
"Wolverhampton City Council","http://opendatacommunities.org/id/metropolitan-district-council/wolverhampton","708796","Wolverhampton Ymca "Badger Court"","P14986920170804","7.00","Client Allowances","190363622","09/08/2017","Looked After Children","LAC Transitions Team","R6301"
"Wolverhampton City Council","http://opendatacommunities.org/id/metropolitan-district-council/wolverhampton","708796","Wolverhampton Ymca "Badger Court"","P15086220170821","7.00","TPP - Placement Foster Care Inhouse","190366738","23/08/2017","Looked After Children","LAC Transitions Team","R5601"
"Wolverhampton City Council","http://opendatacommunities.org/id/metropolitan-district-council/wolverhampton","708796","Wolverhampton Ymca "Badger Court"","P15086220170821","228.62","TPP - Placement Foster Care Inhouse","190366738","23/08/2017","Looked After Children","LAC Transitions Team","R5601"
"Wolverhampton City Council","http://opendatacommunities.org/id/metropolitan-district-council/wolverhampton","708801","Wolverhampton Youth Zone","WYZ270","50,000.00","Grant Payments","130180756","23/08/2017","Specialist Support","Youth Zone","R4700"
"Wolverhampton City Council","http://opendatacommunities.org/id/metropolitan-district-council/wolverhampton","708801","Wolverhampton Youth Zone","WYZ269","50,000.00","Grant Payments","130180755","23/08/2017","Specialist Support","Youth Zone","R4700"
"Wolverhampton City Council","http://opendatacommunities.org/id/metropolitan-district-council/wolverhampton","708801","Wolverhampton Youth Zone","WYZ287","500.00","Services - Supplies and Services to service users","130180497","09/08/2017","Learning Disability Provider","City Links","R4408"
"Wolverhampton City Council","http://opendatacommunities.org/id/metropolitan-district-council/wolverhampton","708801","Wolverhampton Youth Zone","WYZ293","30.00","Hospitality","130182785","23/08/2017","Director of Education","Director of Education","R4612"
"Wolverhampton City Council","http://opendatacommunities.org/id/metropolitan-district-council/wolverhampton","708801","Wolverhampton Youth Zone","WYZ292","52.50","Hospitality","130182605","23/08/2017","Director of Education","Director of Education","R4612"
"Wolverhampton City Council","http://opendatacommunities.org/id/metropolitan-district-council/wolverhampton","708801","Wolverhampton Youth Zone","WYZ183","43.00","Room Hire","130153072","02/08/2017","Community Safety","SWP - Infrastructure","R2201"
"Wolverhampton City Council","http://opendatacommunities.org/id/metropolitan-district-council/wolverhampton","708801","Wolverhampton Youth Zone","WYZ294","1,142.00","Grant Payments","130184223","23/08/2017","Early Intervention","EIP Locality 1 - Eastfields","R4700"
"Wolverhampton City Council","http://opendatacommunities.org/id/metropolitan-district-council/wolverhampton","708820","Woodstock Farm Boarding Kennels","0920","740.00","Storage","130182451","16/08/2017","Safeguarding","Court of Protection, Funerals and Protection of Property","R4910"
"Wolverhampton City Council","http://opendatacommunities.org/id/metropolitan-district-council/wolverhampton","708820","Woodstock Farm Boarding Kennels","0920","-740.00","Storage","130182451","16/08/2017","Safeguarding","Court of Protection, Funerals and Protection of Property","R4910"
"Wolverhampton City Council","http://opendatacommunities.org/id/metropolitan-district-council/wolverhampton","708820","Woodstock Farm Boarding Kennels","0920","740.00","Storage","130182451","16/08/2017","Safeguarding","Court of Protection, Funerals and Protection of Property","R4910"
"Wolverhampton City Council","http://opendatacommunities.org/id/metropolitan-district-council/wolverhampton","708820","Woodstock Farm Boarding Kennels","0921","450.00","Storage","130182452","02/08/2017","Safeguarding","Court of Protection, Funerals and Protection of Property","R4910"
"Wolverhampton City Council","http://opendatacommunities.org/id/metropolitan-district-council/wolverhampton","708820","Woodstock Farm Boarding Kennels","0921","-450.00","Storage","130182452","02/08/2017","Safeguarding","Court of Protection, Funerals and Protection of Property","R4910"
"Wolverhampton City Council","http://opendatacommunities.org/id/metropolitan-district-council/wolverhampton","708820","Woodstock Farm Boarding Kennels","0921","450.00","Storage","130182452","02/08/2017","Safeguarding","Court of Protection, Funerals and Protection of Property","R4910"
"Wolverhampton City Council","http://opendatacommunities.org/id/metropolitan-district-council/wolverhampton","708862","Xerox (UK) Limited","1606981882","16,196.15","Equipment - Hire","130184715","16/08/2017","ICTS","Document Centre - General","R4001"
"Wolverhampton City Council","http://opendatacommunities.org/id/metropolitan-district-council/wolverhampton","708862","Xerox (UK) Limited","1606981882","9,555.10","Equipment - Hire","130184715","16/08/2017","ICTS","Document Centre - General","R4001"
"Wolverhampton City Council","http://opendatacommunities.org/id/metropolitan-district-council/wolverhampton","708862","Xerox (UK) Limited","1606985644","314.54","Equipment - Hire","130184716","16/08/2017","ICTS","Document Centre - General","R4001"
"Wolverhampton City Council","http://opendatacommunities.org/id/metropolitan-district-council/wolverhampton","708865","XMA Limited","BP78363","7,600.00","Plant, Equipment, Machinery & Computer Hardware","130177167","23/08/2017","-","ICT Desktop Refresh","C3000"
"Wolverhampton City Council","http://opendatacommunities.org/id/metropolitan-district-council/wolverhampton","708865","XMA Limited","E303582","-130,057.15","Intangible Assets / Computer Software","130175793","23/08/2017","-","ICT General Programme","C4005"
"Wolverhampton City Council","http://opendatacommunities.org/id/metropolitan-district-council/wolverhampton","708865","XMA Limited","BS82703","52,401.81","Plant, Equipment, Machinery & Computer Hardware","130183099","23/08/2017","-","ICT Desktop Refresh","C3000"
"Wolverhampton City Council","http://opendatacommunities.org/id/metropolitan-district-council/wolverhampton","708865","XMA Limited","BS82703","-52,401.81","Plant, Equipment, Machinery & Computer Hardware","130183099","23/08/2017","-","ICT Desktop Refresh","C3000"
"Wolverhampton City Council","http://opendatacommunities.org/id/metropolitan-district-council/wolverhampton","708865","XMA Limited","BS82703","51,700.00","Plant, Equipment, Machinery & Computer Hardware","130183099","23/08/2017","-","ICT Desktop Refresh","C3000"
"Wolverhampton City Council","http://opendatacommunities.org/id/metropolitan-district-council/wolverhampton","708865","XMA Limited","BQ68803","477.50","Intangible Assets / Computer Software","130179244","23/08/2017","-","ICT Desktop Refresh","C4005"
"Wolverhampton City Council","http://opendatacommunities.org/id/metropolitan-district-council/wolverhampton","708865","XMA Limited","BQ68803","237.50","Intangible Assets / Computer Software","130179244","23/08/2017","-","ICT Desktop Refresh","C4005"
"Wolverhampton City Council","http://opendatacommunities.org/id/metropolitan-district-council/wolverhampton","708865","XMA Limited","BQ68803","3,470.00","Intangible Assets / Computer Software","130179244","23/08/2017","-","ICT Desktop Refresh","C4005"
"Wolverhampton City Council","http://opendatacommunities.org/id/metropolitan-district-council/wolverhampton","708865","XMA Limited","BQ68803","1,990.00","Intangible Assets / Computer Software","130179244","23/08/2017","-","ICT Desktop Refresh","C4005"
"Wolverhampton City Council","http://opendatacommunities.org/id/metropolitan-district-council/wolverhampton","708865","XMA Limited","BP44083","47,866.00","Plant, Equipment, Machinery & Computer Hardware","130176738","23/08/2017","-","ICT Desktop Refresh","C3000"
"Wolverhampton City Council","http://opendatacommunities.org/id/metropolitan-district-council/wolverhampton","708865","XMA Limited","BR65759","48,566.00","Plant, Equipment, Machinery & Computer Hardware","130181096","23/08/2017","-","ICT Desktop Refresh","C3000"
"Wolverhampton City Council","http://opendatacommunities.org/id/metropolitan-district-council/wolverhampton","708865","XMA Limited","BS91141","7,412.85","Intangible Assets / Computer Software","130183496","25/08/2017","-","ICT Desktop Refresh","C4005"
"Wolverhampton City Council","http://opendatacommunities.org/id/metropolitan-district-council/wolverhampton","708886","Ymca City Tots","6853","60.00","TPP - Child Care provided for client","130183306","09/08/2017","Adult Education","Discretionary Fund","R5034"
"Wolverhampton City Council","http://opendatacommunities.org/id/metropolitan-district-council/wolverhampton","708886","Ymca City Tots","6851","450.00","TPP - Child Care provided for client","130182453","02/08/2017","Adult Education","Discretionary Fund","R5034"
"Wolverhampton City Council","http://opendatacommunities.org/id/metropolitan-district-council/wolverhampton","708886","Ymca City Tots","6855","75.00","TPP - Child Care provided for client","130183308","09/08/2017","Adult Education","Discretionary Fund","R5034"
"Wolverhampton City Council","http://opendatacommunities.org/id/metropolitan-district-council/wolverhampton","708904","Youth Justice Board England & Wales","P150216 20081720170811","1,239.00","TPP - Residential Care - Long Term","190364663","16/08/2017","Looked After Children","Remand / Secure Accommodation","R5400"
"Wolverhampton City Council","http://opendatacommunities.org/id/metropolitan-district-council/wolverhampton","708904","Youth Justice Board England & Wales","P150216 20081720170811","177.00","TPP - Residential Care - Long Term","190364663","16/08/2017","Looked After Children","Remand / Secure Accommodation","R5400"
"Wolverhampton City Council","http://opendatacommunities.org/id/metropolitan-district-council/wolverhampton","708904","Youth Justice Board England & Wales","P150216 20081720170811","354.00","TPP - Residential Care - Long Term","190364663","16/08/2017","Looked After Children","Remand / Secure Accommodation","R5400"
"Wolverhampton City Council","http://opendatacommunities.org/id/metropolitan-district-council/wolverhampton","708904","Youth Justice Board England & Wales","P150216 20081720170811","5,790.00","TPP - Residential Care - Long Term","190364663","16/08/2017","Looked After Children","Remand / Secure Accommodation","R5400"
"Wolverhampton City Council","http://opendatacommunities.org/id/metropolitan-district-council/wolverhampton","708904","Youth Justice Board England & Wales","P150216 20081720170811","1,072.00","TPP - Residential Care - Long Term","190364663","16/08/2017","Looked After Children","Remand / Secure Accommodation","R5400"
"Wolverhampton City Council","http://opendatacommunities.org/id/metropolitan-district-council/wolverhampton","708912","1St Call Mobility Limited","H57349","1,255.00","Equipment - Purchase","130179650","02/08/2017","Independent Living Service","Independent Living Service","R4000"
"Wolverhampton City Council","http://opendatacommunities.org/id/metropolitan-district-council/wolverhampton","708931","Zurich Insurance PLC","Engineering Inspection Insurance Policy Number EIJ-02G037-0317","46,613.35","Insurance - General","190362862","04/08/2017","Audit Services","Engineering","R4962"
"Wolverhampton City Council","http://opendatacommunities.org/id/metropolitan-district-council/wolverhampton","708931","Zurich Insurance PLC","School Journey Insurance Policy Number: SJ-02G037-0016","9,794.51","Insurance - General","190362863","04/08/2017","Audit Services","Personal Accident","R4962"
"Wolverhampton City Council","http://opendatacommunities.org/id/metropolitan-district-council/wolverhampton","708985","A Hopton","00026","400.00","TPP - Maintenance Contractor - General","190362346","02/08/2017","Transportation","Cycling Schemes - Bikeability","R5720"
"Wolverhampton City Council","http://opendatacommunities.org/id/metropolitan-district-council/wolverhampton","709264","A D C S Limited","4948","2,351.25","Subscriptions","130181962","18/08/2017","Strategic Director People","Strategic Director People","R4701"
"Wolverhampton City Council","http://opendatacommunities.org/id/metropolitan-district-council/wolverhampton","709298","C Hopkins","00035/2","10.00","Services - Professional Fees","190362351","02/08/2017","Estates and Valuations","Non-Operation Investment - Car Parks (Other)","R4400"
"Wolverhampton City Council","http://opendatacommunities.org/id/metropolitan-district-council/wolverhampton","709298","C Hopkins","00035/1","59.00","Services - Professional Fees","190362350","02/08/2017","Transportation","Advisory Road Markings and Disabled Bays","R4400"
"Wolverhampton City Council","http://opendatacommunities.org/id/metropolitan-district-council/wolverhampton","709298","C Hopkins","00035","570.00","TPP - Maintenance Contractor - General","190362349","02/08/2017","Transportation","Cycling Schemes - Bikeability","R5720"
"Wolverhampton City Council","http://opendatacommunities.org/id/metropolitan-district-council/wolverhampton","709319","A G Jones Stocktakers","170753","95.00","Services - Professional Fees","130184414","16/08/2017","Visitor Economy","The Little Civic","R4400"
"Wolverhampton City Council","http://opendatacommunities.org/id/metropolitan-district-council/wolverhampton","709319","A G Jones Stocktakers","170752","95.00","Services - Professional Fees","130184226","11/08/2017","Visitor Economy","Art Gallery Tea Room","R4400"
"Wolverhampton City Council","http://opendatacommunities.org/id/metropolitan-district-council/wolverhampton","709319","A G Jones Stocktakers","170751","95.00","Services - Professional Fees","130184225","11/08/2017","Visitor Economy","Bantock - Tea Rooms","R4400"
"Wolverhampton City Council","http://opendatacommunities.org/id/metropolitan-district-council/wolverhampton","709440","A Lawson(Dudley School Of Motoring)","306","100.00","Services - Professional Fees","190364619","16/08/2017","Fleet Services","Fleet Management","R4400"
"Wolverhampton City Council","http://opendatacommunities.org/id/metropolitan-district-council/wolverhampton","709704","A.B.C.- Countdown Cars Limited","3439","480.00","Client Transport","130185277","18/08/2017","School Planning & Resources","Special - Transport","R3042"
"Wolverhampton City Council","http://opendatacommunities.org/id/metropolitan-district-council/wolverhampton","709704","A.B.C.- Countdown Cars Limited","3577","300.00","Client Transport","130185278","18/08/2017","School Planning & Resources","Special - Transport","R3042"
"Wolverhampton City Council","http://opendatacommunities.org/id/metropolitan-district-council/wolverhampton","709704","A.B.C.- Countdown Cars Limited","3411","250.00","Client Transport","130186254","30/08/2017","Standards and Vulnerable Pupils","SEN Education OOC","R3042"
"Wolverhampton City Council","http://opendatacommunities.org/id/metropolitan-district-council/wolverhampton","709704","A.B.C.- Countdown Cars Limited","3631","125.00","Client Transport","130186113","25/08/2017","Standards and Vulnerable Pupils","SEN Education OOC","R3042"
"Wolverhampton City Council","http://opendatacommunities.org/id/metropolitan-district-council/wolverhampton","709704","A.B.C.- Countdown Cars Limited","3507","125.00","Client Transport","130186255","30/08/2017","Standards and Vulnerable Pupils","SEN Education OOC","R3042"
"Wolverhampton City Council","http://opendatacommunities.org/id/metropolitan-district-council/wolverhampton","710375","Access Hire Nationwide Limited","65129","45.00","Provisions (Resale)","130181964","04/08/2017","Highways Maintenance","Planned Highways Maintenance","R4102"
"Wolverhampton City Council","http://opendatacommunities.org/id/metropolitan-district-council/wolverhampton","710375","Access Hire Nationwide Limited","65132","90.00","Provisions (Resale)","130181967","02/08/2017","Highways Maintenance","Planned Highways Maintenance","R4102"
"Wolverhampton City Council","http://opendatacommunities.org/id/metropolitan-district-council/wolverhampton","710375","Access Hire Nationwide Limited","65431","672.00","Provisions (Resale)","130182606","02/08/2017","Highways Maintenance","Planned Highways Maintenance","R4102"
"Wolverhampton City Council","http://opendatacommunities.org/id/metropolitan-district-council/wolverhampton","710375","Access Hire Nationwide Limited","65429","1,218.00","Hire of Vehicles","190364060","11/08/2017","Fleet Services","Fleet Management","R3200"
"Wolverhampton City Council","http://opendatacommunities.org/id/metropolitan-district-council/wolverhampton","710375","Access Hire Nationwide Limited","65649","134.85","Hire of Vehicles","190364062","11/08/2017","Fleet Services","Fleet Management","R3200"
"Wolverhampton City Council","http://opendatacommunities.org/id/metropolitan-district-council/wolverhampton","710375","Access Hire Nationwide Limited","64463","45.00","Provisions (Resale)","130176739","02/08/2017","Highways Maintenance","Planned Highways Maintenance","R4102"
"Wolverhampton City Council","http://opendatacommunities.org/id/metropolitan-district-council/wolverhampton","710375","Access Hire Nationwide Limited","65128","45.00","Provisions (Resale)","130181963","04/08/2017","Highways Maintenance","Planned Highways Maintenance","R4102"
"Wolverhampton City Council","http://opendatacommunities.org/id/metropolitan-district-council/wolverhampton","710375","Access Hire Nationwide Limited","65430","1,239.00","Hire of Vehicles","190364061","11/08/2017","Fleet Services","Fleet Management","R3200"
"Wolverhampton City Council","http://opendatacommunities.org/id/metropolitan-district-council/wolverhampton","710375","Access Hire Nationwide Limited","64871","704.00","Provisions (Resale)","130178759","02/08/2017","Highways Maintenance","Planned Highways Maintenance","R4102"
"Wolverhampton City Council","http://opendatacommunities.org/id/metropolitan-district-council/wolverhampton","710375","Access Hire Nationwide Limited","65803","45.00","Provisions (Resale)","130184959","23/08/2017","Highways Maintenance","Planned Highways Maintenance","R4102"
"Wolverhampton City Council","http://opendatacommunities.org/id/metropolitan-district-council/wolverhampton","710375","Access Hire Nationwide Limited","65432","672.00","Provisions (Resale)","130182607","04/08/2017","Highways Maintenance","Planned Highways Maintenance","R4102"
"Wolverhampton City Council","http://opendatacommunities.org/id/metropolitan-district-council/wolverhampton","710375","Access Hire Nationwide Limited","65802","45.00","Provisions (Resale)","130185081","18/08/2017","Highways Maintenance","Planned Highways Maintenance","R4102"
"Wolverhampton City Council","http://opendatacommunities.org/id/metropolitan-district-council/wolverhampton","710375","Access Hire Nationwide Limited","65428","1,239.00","Hire of Vehicles","190364059","11/08/2017","Fleet Services","Fleet Management","R3200"
"Wolverhampton City Council","http://opendatacommunities.org/id/metropolitan-district-council/wolverhampton","710375","Access Hire Nationwide Limited","65800","135.00","Provisions (Resale)","130184957","18/08/2017","Highways Maintenance","Planned Highways Maintenance","R4102"
"Wolverhampton City Council","http://opendatacommunities.org/id/metropolitan-district-council/wolverhampton","710375","Access Hire Nationwide Limited","65427","1,239.00","Hire of Vehicles","190364058","11/08/2017","Fleet Services","Fleet Management","R3200"
"Wolverhampton City Council","http://opendatacommunities.org/id/metropolitan-district-council/wolverhampton","710375","Access Hire Nationwide Limited","65801","135.00","Provisions (Resale)","130184958","23/08/2017","Highways Maintenance","Planned Highways Maintenance","R4102"
"Wolverhampton City Council","http://opendatacommunities.org/id/metropolitan-district-council/wolverhampton","710375","Access Hire Nationwide Limited","64870","704.00","Provisions (Resale)","130178758","02/08/2017","Highways Maintenance","Planned Highways Maintenance","R4102"
"Wolverhampton City Council","http://opendatacommunities.org/id/metropolitan-district-council/wolverhampton","710375","Access Hire Nationwide Limited","65133","90.00","Provisions (Resale)","130181968","02/08/2017","Highways Maintenance","Planned Highways Maintenance","R4102"
"Wolverhampton City Council","http://opendatacommunities.org/id/metropolitan-district-council/wolverhampton","710479","EON","112900","8,960.00","TPP - Maintenance on Other Roads","130180275","04/08/2017","Street Lighting","Street Lighting Maintenance","R5710"
"Wolverhampton City Council","http://opendatacommunities.org/id/metropolitan-district-council/wolverhampton","710567","NHS Wolverhampton CCG","7020500451","90,000.00","TPP - Public Health Contracts","130182150","16/08/2017","Contracts","Wider determinants","R5060"
"Wolverhampton City Council","http://opendatacommunities.org/id/metropolitan-district-council/wolverhampton","710567","NHS Wolverhampton CCG","7020500462","650,000.00","TPP - Payments to Health Authorities","130182787","23/08/2017","Adults Assessment & Care Management North","Pond Lane Recharge Account","R5101"
"Wolverhampton City Council","http://opendatacommunities.org/id/metropolitan-district-council/wolverhampton","710567","NHS Wolverhampton CCG","7020500452","173.07","TPP - Public Health Contracts","130182151","16/08/2017","Contracts","Sexual Health","R5060"
"Wolverhampton City Council","http://opendatacommunities.org/id/metropolitan-district-council/wolverhampton","710567","NHS Wolverhampton CCG","7020500453","271.93","TPP - Public Health Contracts","130182152","16/08/2017","Contracts","Alcohol and Drug","R5060"
"Wolverhampton City Council","http://opendatacommunities.org/id/metropolitan-district-council/wolverhampton","710569","British Gas Business","708794718","-69.37","Electricity","190357892","09/08/2017","Corporate Asset Management","Central Utilities to Recharge","R2100"
"Wolverhampton City Council","http://opendatacommunities.org/id/metropolitan-district-council/wolverhampton","710569","British Gas Business","708450349","666.67","Gas","190354844","09/08/2017","Corporate Asset Management","Central Utilities to Recharge","R2101"
"Wolverhampton City Council","http://opendatacommunities.org/id/metropolitan-district-council/wolverhampton","710569","British Gas Business","952290710","1.10","Electricity","190357890","09/08/2017","Corporate Asset Management","Central Utilities to Recharge","R2100"
"Wolverhampton City Council","http://opendatacommunities.org/id/metropolitan-district-council/wolverhampton","710569","British Gas Business","978224942","2,022.63","Electricity","190363652","09/08/2017","Corporate Asset Management","Central Utilities to Recharge","R2100"
"Wolverhampton City Council","http://opendatacommunities.org/id/metropolitan-district-council/wolverhampton","710569","British Gas Business","996162994","69.37","Electricity","190357893","09/08/2017","Corporate Asset Management","Central Utilities to Recharge","R2100"
"Wolverhampton City Council","http://opendatacommunities.org/id/metropolitan-district-council/wolverhampton","710569","British Gas Business","131788852","-1,880.04","Heating Oil","130179087","09/08/2017","Learning Disability Provider","Pathways to Work","R2102"
"Wolverhampton City Council","http://opendatacommunities.org/id/metropolitan-district-council/wolverhampton","710569","British Gas Business","708746468","-146.05","Electricity","190354845","09/08/2017","Corporate Asset Management","Central Utilities to Recharge","R2100"
"Wolverhampton City Council","http://opendatacommunities.org/id/metropolitan-district-council/wolverhampton","710569","British Gas Business","952290709","29.98","Electricity","190357891","09/08/2017","Corporate Asset Management","Central Utilities to Recharge","R2100"
"Wolverhampton City Council","http://opendatacommunities.org/id/metropolitan-district-council/wolverhampton","710570","Memsafe LTD","2399","901.60","Services - Professional Fees","130183497","16/08/2017","Bereavement Services","Cemeteries","R4400"
"Wolverhampton City Council","http://opendatacommunities.org/id/metropolitan-district-council/wolverhampton","710570","Memsafe LTD","2398","901.60","Services - Professional Fees","130182295","16/08/2017","Bereavement Services","Cemeteries","R4400"
"Wolverhampton City Council","http://opendatacommunities.org/id/metropolitan-district-council/wolverhampton","710573","Western Power Distribution (West Mids) t/a Western Power Distribution","KP00133777","895.70","TPP - Maintenance on Other Roads","130183958","23/08/2017","Street Lighting","Street Lighting Maintenance","R5710"
"Wolverhampton City Council","http://opendatacommunities.org/id/metropolitan-district-council/wolverhampton","710573","Western Power Distribution (West Mids) t/a Western Power Distribution","KP00131421","540.96","TPP - Maintenance on Other Roads","130181444","04/08/2017","Street Lighting","Street Lighting Maintenance","R5710"
"Wolverhampton City Council","http://opendatacommunities.org/id/metropolitan-district-council/wolverhampton","710573","Western Power Distribution (West Mids) t/a Western Power Distribution","KP00133656","639.78","TPP - Maintenance on Other Roads","130182612","23/08/2017","Street Lighting","Street Lighting Maintenance","R5710"
"Wolverhampton City Council","http://opendatacommunities.org/id/metropolitan-district-council/wolverhampton","710573","Western Power Distribution (West Mids) t/a Western Power Distribution","KP00133023","404.20","TPP - Maintenance on Other Roads","130180081","02/08/2017","Street Lighting","Street Lighting Maintenance","R5710"
"Wolverhampton City Council","http://opendatacommunities.org/id/metropolitan-district-council/wolverhampton","710573","Western Power Distribution (West Mids) t/a Western Power Distribution","KC00104780","-3,818.09","Construction and Conversion","130183954","30/08/2017","-","Heath Town","C1100"
"Wolverhampton City Council","http://opendatacommunities.org/id/metropolitan-district-council/wolverhampton","710573","Western Power Distribution (West Mids) t/a Western Power Distribution","KP00133584","639.78","TPP - Maintenance on Other Roads","130182611","18/08/2017","Street Lighting","Street Lighting Maintenance","R5710"
"Wolverhampton City Council","http://opendatacommunities.org/id/metropolitan-district-council/wolverhampton","710573","Western Power Distribution (West Mids) t/a Western Power Distribution","KP00133930","519.56","TPP - Maintenance on Other Roads","130183961","30/08/2017","Street Lighting","Street Lighting Maintenance","R5710"
"Wolverhampton City Council","http://opendatacommunities.org/id/metropolitan-district-council/wolverhampton","710573","Western Power Distribution (West Mids) t/a Western Power Distribution","KP00133819","726.84","TPP - Maintenance on Other Roads","130183960","30/08/2017","Street Lighting","Street Lighting Maintenance","R5710"
"Wolverhampton City Council","http://opendatacommunities.org/id/metropolitan-district-council/wolverhampton","710573","Western Power Distribution (West Mids) t/a Western Power Distribution","KP00133700","3,818.09","Construction and Conversion","130182454","23/08/2017","-","Heath Town","C1100"
"Wolverhampton City Council","http://opendatacommunities.org/id/metropolitan-district-council/wolverhampton","710573","Western Power Distribution (West Mids) t/a Western Power Distribution","KP00133022","404.20","TPP - Maintenance on Other Roads","130180080","04/08/2017","Street Lighting","Street Lighting Maintenance","R5710"
"Wolverhampton City Council","http://opendatacommunities.org/id/metropolitan-district-council/wolverhampton","710573","Western Power Distribution (West Mids) t/a Western Power Distribution","KP00133115","639.78","TPP - Maintenance on Other Roads","130182610","04/08/2017","Street Lighting","Street Lighting Maintenance","R5710"
"Wolverhampton City Council","http://opendatacommunities.org/id/metropolitan-district-council/wolverhampton","710573","Western Power Distribution (West Mids) t/a Western Power Distribution","KI00135931","762.61","TPP - Maintenance on Other Roads","130182297","18/08/2017","Street Lighting","Street Lighting Maintenance","R5710"
"Wolverhampton City Council","http://opendatacommunities.org/id/metropolitan-district-council/wolverhampton","710573","Western Power Distribution (West Mids) t/a Western Power Distribution","KI00136074","620.14","TPP - Maintenance on Other Roads","130183956","30/08/2017","Street Lighting","Street Lighting Maintenance","R5710"
"Wolverhampton City Council","http://opendatacommunities.org/id/metropolitan-district-council/wolverhampton","710573","Western Power Distribution (West Mids) t/a Western Power Distribution","KP00133931","3,297.22","TPP - Maintenance on Other Roads","130183962","30/08/2017","Street Lighting","Street Lighting Maintenance","R5710"
"Wolverhampton City Council","http://opendatacommunities.org/id/metropolitan-district-council/wolverhampton","710573","Western Power Distribution (West Mids) t/a Western Power Distribution","KC00104720","-604.41","TPP - Maintenance on Other Roads","130182608","23/08/2017","Street Lighting","Street Lighting Maintenance","R5710"
"Wolverhampton City Council","http://opendatacommunities.org/id/metropolitan-district-council/wolverhampton","710573","Western Power Distribution (West Mids) t/a Western Power Distribution","KP00133064","533.15","TPP - Maintenance on Other Roads","130180082","04/08/2017","Street Lighting","Street Lighting Maintenance","R5710"
"Wolverhampton City Council","http://opendatacommunities.org/id/metropolitan-district-council/wolverhampton","710573","Western Power Distribution (West Mids) t/a Western Power Distribution","KI00135968","604.41","TPP - Maintenance on Other Roads","130182609","23/08/2017","Street Lighting","Street Lighting Maintenance","R5710"
"Wolverhampton City Council","http://opendatacommunities.org/id/metropolitan-district-council/wolverhampton","710573","Western Power Distribution (West Mids) t/a Western Power Distribution","KI00135917","604.41","TPP - Maintenance on Other Roads","130182296","18/08/2017","Street Lighting","Street Lighting Maintenance","R5710"
"Wolverhampton City Council","http://opendatacommunities.org/id/metropolitan-district-council/wolverhampton","710573","Western Power Distribution (West Mids) t/a Western Power Distribution","KP00133779","895.70","TPP - Maintenance on Other Roads","130183959","30/08/2017","Street Lighting","Street Lighting Maintenance","R5710"
"Wolverhampton City Council","http://opendatacommunities.org/id/metropolitan-district-council/wolverhampton","710573","Western Power Distribution (West Mids) t/a Western Power Distribution","KP00133845","639.78","TPP - Maintenance on Other Roads","130184415","30/08/2017","Street Lighting","Street Lighting Maintenance","R5710"
"Wolverhampton City Council","http://opendatacommunities.org/id/metropolitan-district-council/wolverhampton","710573","Western Power Distribution (West Mids) t/a Western Power Distribution","KI00135628","392.63","TPP - Maintenance on Other Roads","130179246","02/08/2017","Street Lighting","Street Lighting Maintenance","R5710"
"Wolverhampton City Council","http://opendatacommunities.org/id/metropolitan-district-council/wolverhampton","710573","Western Power Distribution (West Mids) t/a Western Power Distribution","KI00135248","457.44","TPP - Maintenance on Other Roads","130181443","04/08/2017","Street Lighting","Signs Illuminated","R5710"
"Wolverhampton City Council","http://opendatacommunities.org/id/metropolitan-district-council/wolverhampton","710573","Western Power Distribution (West Mids) t/a Western Power Distribution","KP00133065","533.15","TPP - Maintenance on Other Roads","130180083","04/08/2017","Street Lighting","Street Lighting Maintenance","R5710"
"Wolverhampton City Council","http://opendatacommunities.org/id/metropolitan-district-council/wolverhampton","710573","Western Power Distribution (West Mids) t/a Western Power Distribution","KP00133775","5,464.64","TPP - Maintenance on Other Roads","130183957","23/08/2017","Street Lighting","Street Lighting Maintenance","R5710"
"Wolverhampton City Council","http://opendatacommunities.org/id/metropolitan-district-council/wolverhampton","710573","Western Power Distribution (West Mids) t/a Western Power Distribution","KI00135657","3,818.09","Construction and Conversion","130179900","02/08/2017","-","Heath Town","C1100"
"Wolverhampton City Council","http://opendatacommunities.org/id/metropolitan-district-council/wolverhampton","710573","Western Power Distribution (West Mids) t/a Western Power Distribution","KI00136062","632.62","TPP - Maintenance on Other Roads","130183955","30/08/2017","Street Lighting","Street Lighting Maintenance","R5710"
"Wolverhampton City Council","http://opendatacommunities.org/id/metropolitan-district-council/wolverhampton","710573","Western Power Distribution (West Mids) t/a Western Power Distribution","KP00133932","1,293.44","TPP - Maintenance on Other Roads","130183963","30/08/2017","Street Lighting","Signs Illuminated","R5710"
"Wolverhampton City Council","http://opendatacommunities.org/id/metropolitan-district-council/wolverhampton","710581","Enable LTD","6611","3,190.50","Direct payments - Long Term support","130184417","16/08/2017","Head of Commissioning","Commissioning Disabilities","R6302"
"Wolverhampton City Council","http://opendatacommunities.org/id/metropolitan-district-council/wolverhampton","710581","Enable LTD","6614","3,224.25","Direct payments - Long Term support","130184419","25/08/2017","Head of Commissioning","Commissioning Disabilities","R6302"
"Wolverhampton City Council","http://opendatacommunities.org/id/metropolitan-district-council/wolverhampton","710581","Enable LTD","6613","3,231.00","Direct payments - Long Term support","130184418","25/08/2017","Head of Commissioning","Commissioning Disabilities","R6302"
"Wolverhampton City Council","http://opendatacommunities.org/id/metropolitan-district-council/wolverhampton","710581","Enable LTD","6606","3,325.50","Direct payments - Long Term support","130184416","16/08/2017","Head of Commissioning","Commissioning Disabilities","R6302"
"Wolverhampton City Council","http://opendatacommunities.org/id/metropolitan-district-council/wolverhampton","710600","E H Smith Builders Merchant LTD","CAI959442","1,033.20","Materials","130183665","30/08/2017","Highways Maintenance","Patching","R4007"
"Wolverhampton City Council","http://opendatacommunities.org/id/metropolitan-district-council/wolverhampton","710600","E H Smith Builders Merchant LTD","CAI959610","63.06","Materials","130184227","30/08/2017","Highways Maintenance","Patching","R4007"
"Wolverhampton City Council","http://opendatacommunities.org/id/metropolitan-district-council/wolverhampton","710600","E H Smith Builders Merchant LTD","CAI959610","0.94","Materials","130184227","30/08/2017","Highways Maintenance","Patching","R4007"
"Wolverhampton City Council","http://opendatacommunities.org/id/metropolitan-district-council/wolverhampton","710600","E H Smith Builders Merchant LTD","CAI958152","888.80","Materials","130180499","09/08/2017","Highways Maintenance","Patching","R4007"
"Wolverhampton City Council","http://opendatacommunities.org/id/metropolitan-district-council/wolverhampton","710600","E H Smith Builders Merchant LTD","CAI959441","985.60","Materials","130183664","30/08/2017","Highways Maintenance","Patching","R4007"
"Wolverhampton City Council","http://opendatacommunities.org/id/metropolitan-district-council/wolverhampton","710600","E H Smith Builders Merchant LTD","CAI957843","546.44","Materials","130180084","02/08/2017","Highways Maintenance","Patching","R4007"
"Wolverhampton City Council","http://opendatacommunities.org/id/metropolitan-district-council/wolverhampton","710600","E H Smith Builders Merchant LTD","LEI175183","10.94","Materials","130182298","18/08/2017","Highways Maintenance","Patching","R4007"
"Wolverhampton City Council","http://opendatacommunities.org/id/metropolitan-district-council/wolverhampton","710600","E H Smith Builders Merchant LTD","CAI959469","11.94","Materials","130183666","30/08/2017","Highways Maintenance","Patching","R4007"
"Wolverhampton City Council","http://opendatacommunities.org/id/metropolitan-district-council/wolverhampton","710610","Dr A Sharma","L&A 001","1,572.50","Services - Professional Fees","130184720","23/08/2017","Bereavement Services","Crematorium","R4400"
"Wolverhampton City Council","http://opendatacommunities.org/id/metropolitan-district-council/wolverhampton","710616","Lea Road Medical Practice","M2017Q115SHCIFRQ","90.00","TPP - Public Health Contracts","190363806","09/08/2017","Contracts","Sexual Health","R5060"
"Wolverhampton City Council","http://opendatacommunities.org/id/metropolitan-district-council/wolverhampton","710616","Lea Road Medical Practice","M2017Q115HL1IHCQ","15.00","TPP - Public Health Contracts","190363810","09/08/2017","Contracts","Healthy Lifestyles","R5060"
"Wolverhampton City Council","http://opendatacommunities.org/id/metropolitan-district-council/wolverhampton","710616","Lea Road Medical Practice","M2017Q115SHIUFRQ","175.00","TPP - Public Health Contracts","190363808","09/08/2017","Contracts","Sexual Health","R5060"
"Wolverhampton City Council","http://opendatacommunities.org/id/metropolitan-district-council/wolverhampton","710616","Lea Road Medical Practice","M2017Q115SHCIFBQ","80.00","TPP - Public Health Contracts","190363807","09/08/2017","Contracts","Sexual Health","R5060"
"Wolverhampton City Council","http://opendatacommunities.org/id/metropolitan-district-council/wolverhampton","710616","Lea Road Medical Practice","M2017Q1.15SHIUDRQa","25.00","TPP - Public Health Contracts","190363809","09/08/2017","Contracts","Sexual Health","R5060"
"Wolverhampton City Council","http://opendatacommunities.org/id/metropolitan-district-council/wolverhampton","710616","Lea Road Medical Practice","M2017Q115SMSCMRQa","1,391.00","TPP - Public Health Contracts","190363805","09/08/2017","Contracts","Alcohol and Drug","R5060"
"Wolverhampton City Council","http://opendatacommunities.org/id/metropolitan-district-council/wolverhampton","710635","Mrs D K Sahota","2017 - 18 1","30.00","TPP - Public Health Contracts","130185083","23/08/2017","Healthier Places Service","Sport Development","R5060"
"Wolverhampton City Council","http://opendatacommunities.org/id/metropolitan-district-council/wolverhampton","710640","Turner & Townsend Project Management LTD","000571004","1,932.23","Construction and Conversion","130180952","09/08/2017","-","Future Spaces","C1100"
"Wolverhampton City Council","http://opendatacommunities.org/id/metropolitan-district-council/wolverhampton","710640","Turner & Townsend Project Management LTD","000571003","13,462.99","Construction and Conversion","130180951","09/08/2017","-","Future Spaces","C1100"
"Wolverhampton City Council","http://opendatacommunities.org/id/metropolitan-district-council/wolverhampton","710664","NonStop Recruitment LTD","137158","1,295.00","Agency Staff","130183324","09/08/2017","Child Protection","CIN/CP Social Work Unit - Area 2","R1100"
"Wolverhampton City Council","http://opendatacommunities.org/id/metropolitan-district-council/wolverhampton","710664","NonStop Recruitment LTD","135734","1,032.50","Agency Staff","130183318","09/08/2017","Child Protection","CIN/CP Social Work Unit - Area 2","R1100"
"Wolverhampton City Council","http://opendatacommunities.org/id/metropolitan-district-council/wolverhampton","710664","NonStop Recruitment LTD","135516","1,295.00","Agency Staff","130183317","09/08/2017","Child Protection","CIN/CP Social Work Unit - Area 2","R1100"
"Wolverhampton City Council","http://opendatacommunities.org/id/metropolitan-district-council/wolverhampton","710664","NonStop Recruitment LTD","138169","1,295.00","Agency Staff","130182155","18/08/2017","Child Protection","CIN/CP Social Work Unit - Area 5","R1100"
"Wolverhampton City Council","http://opendatacommunities.org/id/metropolitan-district-council/wolverhampton","710664","NonStop Recruitment LTD","137132","1,295.00","Agency Staff","130182307","04/08/2017","Child Protection","CIN/CP Social Work Unit - Area 1","R1100"
"Wolverhampton City Council","http://opendatacommunities.org/id/metropolitan-district-council/wolverhampton","710664","NonStop Recruitment LTD","136892","1,312.50","Agency Staff","130182303","04/08/2017","Child Protection","CIN/CP Social Work Unit - Area 1","R1100"
"Wolverhampton City Council","http://opendatacommunities.org/id/metropolitan-district-council/wolverhampton","710664","NonStop Recruitment LTD","135478","1,050.00","Agency Staff","130170141","04/08/2017","Child Protection","CIN/CP Social Work Unit - Area 1","R1100"
"Wolverhampton City Council","http://opendatacommunities.org/id/metropolitan-district-council/wolverhampton","710664","NonStop Recruitment LTD","134315","1,295.00","Agency Staff","130166210","23/08/2017","Child Protection","CIN/CP Social Work Unit - Area 1","R1100"
"Wolverhampton City Council","http://opendatacommunities.org/id/metropolitan-district-council/wolverhampton","710664","NonStop Recruitment LTD","136894","1,050.00","Agency Staff","130182305","04/08/2017","Child Protection","CIN/CP Social Work Unit - Area 1","R1100"
"Wolverhampton City Council","http://opendatacommunities.org/id/metropolitan-district-council/wolverhampton","710664","NonStop Recruitment LTD","136891","1,312.50","Agency Staff","130182302","04/08/2017","Child Protection","CIN/CP Social Work Unit - Area 1","R1100"
"Wolverhampton City Council","http://opendatacommunities.org/id/metropolitan-district-council/wolverhampton","710664","NonStop Recruitment LTD","137390","1,312.50","Agency Staff","130182308","04/08/2017","Child Protection","CIN/CP Social Work Unit - Area 1","R1100"
"Wolverhampton City Council","http://opendatacommunities.org/id/metropolitan-district-council/wolverhampton","710664","NonStop Recruitment LTD","137810","1,295.00","Agency Staff","130180501","09/08/2017","Child Protection","CIN/CP Social Work Unit - Area 5","R1100"
"Wolverhampton City Council","http://opendatacommunities.org/id/metropolitan-district-council/wolverhampton","710664","NonStop Recruitment LTD","136501","1,295.00","Agency Staff","130183321","09/08/2017","Child Protection","CIN/CP Social Work Unit - Area 2","R1100"
"Wolverhampton City Council","http://opendatacommunities.org/id/metropolitan-district-council/wolverhampton","710664","NonStop Recruitment LTD","137814","1,295.00","Agency Staff","130183327","09/08/2017","Child Protection","CIN/CP Social Work Unit - Area 2","R1100"
"Wolverhampton City Council","http://opendatacommunities.org/id/metropolitan-district-council/wolverhampton","710664","NonStop Recruitment LTD","138168","1,295.00","Agency Staff","130182154","18/08/2017","Child Protection","CIN/CP Social Work Unit - Area 5","R1100"
"Wolverhampton City Council","http://opendatacommunities.org/id/metropolitan-district-council/wolverhampton","710664","NonStop Recruitment LTD","138342","1,295.00","Agency Staff","130183330","25/08/2017","Child Protection","CIN/CP Social Work Unit - Area 2","R1100"
"Wolverhampton City Council","http://opendatacommunities.org/id/metropolitan-district-council/wolverhampton","710664","NonStop Recruitment LTD","137811","16.20","Agency Staff","130180502","09/08/2017","Child Protection","CIN/CP Social Work Unit - Area 5","R1100"
"Wolverhampton City Council","http://opendatacommunities.org/id/metropolitan-district-council/wolverhampton","710664","NonStop Recruitment LTD","137776","1,312.50","Agency Staff","130182310","09/08/2017","Child Protection","CIN/CP Social Work Unit - Area 1","R1100"
"Wolverhampton City Council","http://opendatacommunities.org/id/metropolitan-district-council/wolverhampton","710664","NonStop Recruitment LTD","138125","1,295.00","Agency Staff","130183329","18/08/2017","Child Protection","CIN/CP Social Work Unit - Area 2","R1100"
"Wolverhampton City Council","http://opendatacommunities.org/id/metropolitan-district-council/wolverhampton","710664","NonStop Recruitment LTD","136796","1,032.50","Agency Staff","130183323","09/08/2017","Child Protection","CIN/CP Social Work Unit - Area 2","R1100"
"Wolverhampton City Council","http://opendatacommunities.org/id/metropolitan-district-council/wolverhampton","710664","NonStop Recruitment LTD","137233","1,295.00","Agency Staff","130183325","09/08/2017","Child Protection","CIN/CP Social Work Unit - Area 2","R1100"
"Wolverhampton City Council","http://opendatacommunities.org/id/metropolitan-district-council/wolverhampton","710664","NonStop Recruitment LTD","137956","1,295.00","Agency Staff","130183328","11/08/2017","Child Protection","CIN/CP Social Work Unit - Area 2","R1100"
"Wolverhampton City Council","http://opendatacommunities.org/id/metropolitan-district-council/wolverhampton","710664","NonStop Recruitment LTD","135038","1,295.00","Agency Staff","130167985","23/08/2017","Child Protection","CIN/CP Social Work Unit - Area 1","R1100"
"Wolverhampton City Council","http://opendatacommunities.org/id/metropolitan-district-council/wolverhampton","710664","NonStop Recruitment LTD","137603","1,312.50","Agency Staff","130182309","04/08/2017","Child Protection","CIN/CP Social Work Unit - Area 1","R1100"
"Wolverhampton City Council","http://opendatacommunities.org/id/metropolitan-district-council/wolverhampton","710664","NonStop Recruitment LTD","136893","1,312.50","Agency Staff","130182304","04/08/2017","Child Protection","CIN/CP Social Work Unit - Area 1","R1100"
"Wolverhampton City Council","http://opendatacommunities.org/id/metropolitan-district-council/wolverhampton","710664","NonStop Recruitment LTD","136888","1,050.00","Agency Staff","130182299","04/08/2017","Child Protection","CIN/CP Social Work Unit - Area 1","R1100"
"Wolverhampton City Council","http://opendatacommunities.org/id/metropolitan-district-council/wolverhampton","710664","NonStop Recruitment LTD","138466","1,295.00","Agency Staff","130183331","30/08/2017","Child Protection","CIN/CP Social Work Unit - Area 5","R1100"
"Wolverhampton City Council","http://opendatacommunities.org/id/metropolitan-district-council/wolverhampton","710664","NonStop Recruitment LTD","137813","62.10","Agency Staff","130180504","09/08/2017","Child Protection","CIN/CP Social Work Unit - Area 5","R1100"
"Wolverhampton City Council","http://opendatacommunities.org/id/metropolitan-district-council/wolverhampton","710664","NonStop Recruitment LTD","137450","1,295.00","Agency Staff","130183326","09/08/2017","Child Protection","CIN/CP Social Work Unit - Area 2","R1100"
"Wolverhampton City Council","http://opendatacommunities.org/id/metropolitan-district-council/wolverhampton","710664","NonStop Recruitment LTD","136500","1,295.00","Agency Staff","130183320","09/08/2017","Child Protection","CIN/CP Social Work Unit - Area 2","R1100"
"Wolverhampton City Council","http://opendatacommunities.org/id/metropolitan-district-council/wolverhampton","710664","NonStop Recruitment LTD","136890","1,050.00","Agency Staff","130182301","04/08/2017","Child Protection","CIN/CP Social Work Unit - Area 1","R1100"
"Wolverhampton City Council","http://opendatacommunities.org/id/metropolitan-district-council/wolverhampton","710664","NonStop Recruitment LTD","136889","1,312.50","Agency Staff","130182300","04/08/2017","Child Protection","CIN/CP Social Work Unit - Area 1","R1100"
"Wolverhampton City Council","http://opendatacommunities.org/id/metropolitan-district-council/wolverhampton","710664","NonStop Recruitment LTD","136895","1,312.50","Agency Staff","130182306","04/08/2017","Child Protection","CIN/CP Social Work Unit - Area 1","R1100"
"Wolverhampton City Council","http://opendatacommunities.org/id/metropolitan-district-council/wolverhampton","710710","Dinos Building Limited (Adaptations)","14/0999/DFGa","10,750.00","Grants paid out","190367180","23/08/2017","-","Disabled Facilities Grants","C5000"
"Wolverhampton City Council","http://opendatacommunities.org/id/metropolitan-district-council/wolverhampton","710746","Tasties of Chester Limited","133338","182.12","Provisions (Resale)","130179020","11/08/2017","Leisure Services","WV Active Catering","R4102"
"Wolverhampton City Council","http://opendatacommunities.org/id/metropolitan-district-council/wolverhampton","710780","Wilson & Scott (Highways) LTD","25260","9,562.18","TPP - Maintenance on Principal Roads","130181249","16/08/2017","Highways Maintenance","Road Markings","R5700"
"Wolverhampton City Council","http://opendatacommunities.org/id/metropolitan-district-council/wolverhampton","710780","Wilson & Scott (Highways) LTD","25293","760.95","Construction and Conversion","130182159","23/08/2017","-","Safety Programme","C1100"
"Wolverhampton City Council","http://opendatacommunities.org/id/metropolitan-district-council/wolverhampton","710780","Wilson & Scott (Highways) LTD","25367","495.63","Construction and Conversion","130183101","25/08/2017","-","Safety Programme","C1100"
"Wolverhampton City Council","http://opendatacommunities.org/id/metropolitan-district-council/wolverhampton","710780","Wilson & Scott (Highways) LTD","25259","822.21","Construction and Conversion","130181248","16/08/2017","-","Safety Programme","C1100"
"Wolverhampton City Council","http://opendatacommunities.org/id/metropolitan-district-council/wolverhampton","710780","Wilson & Scott (Highways) LTD","25366","9,023.32","TPP - Maintenance on Principal Roads","130183100","25/08/2017","Highways Maintenance","Road Markings","R5700"
"Wolverhampton City Council","http://opendatacommunities.org/id/metropolitan-district-council/wolverhampton","710795","The Dudley Group NHS Foundation Trust","2000005137","4,904.00","TPP - Public Health Contracts","130184231","30/08/2017","Contracts","Sexual Health","R5060"
"Wolverhampton City Council","http://opendatacommunities.org/id/metropolitan-district-council/wolverhampton","710795","The Dudley Group NHS Foundation Trust","2000005138","546.00","TPP - Public Health Contracts","130184232","30/08/2017","Contracts","Sexual Health","R5060"
"Wolverhampton City Council","http://opendatacommunities.org/id/metropolitan-district-council/wolverhampton","710828","Andrew Page","061400887","4.66","Equipment - Purchase","190367128","23/08/2017","Fleet Services","Fleet Management","R4000"
"Wolverhampton City Council","http://opendatacommunities.org/id/metropolitan-district-council/wolverhampton","710828","Andrew Page","061400887","2.92","Equipment - Purchase","190367128","23/08/2017","Fleet Services","Fleet Management","R4000"
"Wolverhampton City Council","http://opendatacommunities.org/id/metropolitan-district-council/wolverhampton","710828","Andrew Page","061400887","4.25","Equipment - Purchase","190367128","23/08/2017","Fleet Services","Fleet Management","R4000"
"Wolverhampton City Council","http://opendatacommunities.org/id/metropolitan-district-council/wolverhampton","710828","Andrew Page","061401892","7.76","Equipment - Purchase","190365092","16/08/2017","Fleet Services","Fleet Management","R4000"
"Wolverhampton City Council","http://opendatacommunities.org/id/metropolitan-district-council/wolverhampton","710828","Andrew Page","061401892","2.56","Equipment - Purchase","190365092","16/08/2017","Fleet Services","Fleet Management","R4000"
"Wolverhampton City Council","http://opendatacommunities.org/id/metropolitan-district-council/wolverhampton","710828","Andrew Page","061402234","44.88","Equipment - Purchase","190365093","16/08/2017","Fleet Services","Fleet Management","R4000"
"Wolverhampton City Council","http://opendatacommunities.org/id/metropolitan-district-council/wolverhampton","710828","Andrew Page","061400744","2.59","Equipment - Purchase","190365851","18/08/2017","Fleet Services","Fleet Management","R4000"
"Wolverhampton City Council","http://opendatacommunities.org/id/metropolitan-district-council/wolverhampton","710828","Andrew Page","061400604","23.92","Equipment - Purchase","190368278","30/08/2017","Fleet Services","Fleet Management","R4000"
"Wolverhampton City Council","http://opendatacommunities.org/id/metropolitan-district-council/wolverhampton","710828","Andrew Page","061400604","3.91","Equipment - Purchase","190368278","30/08/2017","Fleet Services","Fleet Management","R4000"
"Wolverhampton City Council","http://opendatacommunities.org/id/metropolitan-district-council/wolverhampton","710828","Andrew Page","061400604","10.56","Equipment - Purchase","190368278","30/08/2017","Fleet Services","Fleet Management","R4000"
"Wolverhampton City Council","http://opendatacommunities.org/id/metropolitan-district-council/wolverhampton","710828","Andrew Page","061400604","3.98","Equipment - Purchase","190368278","30/08/2017","Fleet Services","Fleet Management","R4000"
"Wolverhampton City Council","http://opendatacommunities.org/id/metropolitan-district-council/wolverhampton","710828","Andrew Page","061400604","7.18","Equipment - Purchase","190368278","30/08/2017","Fleet Services","Fleet Management","R4000"
"Wolverhampton City Council","http://opendatacommunities.org/id/metropolitan-district-council/wolverhampton","710828","Andrew Page","061400604","13.38","Equipment - Purchase","190368278","30/08/2017","Fleet Services","Fleet Management","R4000"
"Wolverhampton City Council","http://opendatacommunities.org/id/metropolitan-district-council/wolverhampton","710828","Andrew Page","061402539","12.78","Equipment - Purchase","190367131","23/08/2017","Fleet Services","Fleet Management","R4000"
"Wolverhampton City Council","http://opendatacommunities.org/id/metropolitan-district-council/wolverhampton","710828","Andrew Page","61400797","4.80","Equipment - Purchase","190365103","16/08/2017","Fleet Services","Fleet Management","R4000"
"Wolverhampton City Council","http://opendatacommunities.org/id/metropolitan-district-council/wolverhampton","710828","Andrew Page","61400797","4.25","Equipment - Purchase","190365103","16/08/2017","Fleet Services","Fleet Management","R4000"
"Wolverhampton City Council","http://opendatacommunities.org/id/metropolitan-district-council/wolverhampton","710828","Andrew Page","61400797","2.92","Equipment - Purchase","190365103","16/08/2017","Fleet Services","Fleet Management","R4000"
"Wolverhampton City Council","http://opendatacommunities.org/id/metropolitan-district-council/wolverhampton","710828","Andrew Page","061402237","21.10","Equipment - Purchase","190365094","16/08/2017","Fleet Services","Fleet Management","R4000"
"Wolverhampton City Council","http://opendatacommunities.org/id/metropolitan-district-council/wolverhampton","710828","Andrew Page","016401876","16.00","Equipment - Purchase","190365089","16/08/2017","Fleet Services","Fleet Management","R4000"
"Wolverhampton City Council","http://opendatacommunities.org/id/metropolitan-district-council/wolverhampton","710828","Andrew Page","061402474","15.62","Equipment - Purchase","190367130","23/08/2017","Fleet Services","Fleet Management","R4000"
"Wolverhampton City Council","http://opendatacommunities.org/id/metropolitan-district-council/wolverhampton","710828","Andrew Page","061403090","49.52","Equipment - Purchase","190367133","23/08/2017","Fleet Services","Fleet Management","R4000"
"Wolverhampton City Council","http://opendatacommunities.org/id/metropolitan-district-council/wolverhampton","710828","Andrew Page","016402437","7.76","Equipment - Purchase","190365850","18/08/2017","Fleet Services","Fleet Management","R4000"
"Wolverhampton City Council","http://opendatacommunities.org/id/metropolitan-district-council/wolverhampton","710828","Andrew Page","061401783","9.22","Equipment - Purchase","190365091","16/08/2017","Fleet Services","Fleet Management","R4000"
"Wolverhampton City Council","http://opendatacommunities.org/id/metropolitan-district-council/wolverhampton","710828","Andrew Page","016401964","16.00","Equipment - Purchase","190365090","16/08/2017","Fleet Services","Fleet Management","R4000"
"Wolverhampton City Council","http://opendatacommunities.org/id/metropolitan-district-council/wolverhampton","710828","Andrew Page","061401783","11.42","Equipment - Purchase","190365091","16/08/2017","Fleet Services","Fleet Management","R4000"
"Wolverhampton City Council","http://opendatacommunities.org/id/metropolitan-district-council/wolverhampton","710828","Andrew Page","061401055","19.94","Equipment - Purchase","190367129","23/08/2017","Fleet Services","Fleet Management","R4000"
"Wolverhampton City Council","http://opendatacommunities.org/id/metropolitan-district-council/wolverhampton","710828","Andrew Page","061403020","64.00","Equipment - Purchase","190367132","23/08/2017","Fleet Services","Fleet Management","R4000"
"Wolverhampton City Council","http://opendatacommunities.org/id/metropolitan-district-council/wolverhampton","710828","Andrew Page","061403020","43.00","Equipment - Purchase","190367132","23/08/2017","Fleet Services","Fleet Management","R4000"
"Wolverhampton City Council","http://opendatacommunities.org/id/metropolitan-district-council/wolverhampton","710828","Andrew Page","061400629","1.54","Equipment - Purchase","190368279","30/08/2017","Fleet Services","Fleet Management","R4000"
"Wolverhampton City Council","http://opendatacommunities.org/id/metropolitan-district-council/wolverhampton","710878","247 Cars","1005","122.75","Client Transport","130180953","02/08/2017","School Planning & Resources","Special - Transport","R3042"
"Wolverhampton City Council","http://opendatacommunities.org/id/metropolitan-district-council/wolverhampton","710878","247 Cars","786","877.50","Client Transport","130182160","02/08/2017","School Planning & Resources","Special - Transport","R3042"
"Wolverhampton City Council","http://opendatacommunities.org/id/metropolitan-district-council/wolverhampton","710878","247 Cars","787","1,414.50","Client Transport","130182161","02/08/2017","School Planning & Resources","Special - Transport","R3042"
"Wolverhampton City Council","http://opendatacommunities.org/id/metropolitan-district-council/wolverhampton","710890","Condair PLC","SERVINV008962","765.00","R&M - Departmental planned (internal)","130183965","30/08/2017","Maintenance Programme","Centralised R&M","R2000"
"Wolverhampton City Council","http://opendatacommunities.org/id/metropolitan-district-council/wolverhampton","710915","Barts Health NHS Trust","304501GUM M3","296.62","TPP - Public Health Contracts","190364306","11/08/2017","Contracts","Sexual Health","R5060"
"Wolverhampton City Council","http://opendatacommunities.org/id/metropolitan-district-council/wolverhampton","710917","George Eliot Hospital NHS Trust","M0112393a","139.30","TPP - Public Health Contracts","190366753","23/08/2017","Contracts","Sexual Health","R5060"
"Wolverhampton City Council","http://opendatacommunities.org/id/metropolitan-district-council/wolverhampton","710928","Yoo Recruit LTD","L2952","1,321.04","TPP - Social Care Support Services","130185305","23/08/2017","Safeguarding","MCA General","R5501"
"Wolverhampton City Council","http://opendatacommunities.org/id/metropolitan-district-council/wolverhampton","710928","Yoo Recruit LTD","L2940","2,450.48","Agency Staff","130184761","23/08/2017","Adults Assessment & Care Management West","Adult Services � West","R1100"
"Wolverhampton City Council","http://opendatacommunities.org/id/metropolitan-district-council/wolverhampton","710928","Yoo Recruit LTD","07815","816.14","Agency Staff","130184460","23/08/2017","Fleet Services","Passenger Transport - General","R1100"
"Wolverhampton City Council","http://opendatacommunities.org/id/metropolitan-district-council/wolverhampton","710928","Yoo Recruit LTD","07875","34.22","Agency Staff","130184515","16/08/2017","Visitor Economy","The Little Civic","R1100"
"Wolverhampton City Council","http://opendatacommunities.org/id/metropolitan-district-council/wolverhampton","710928","Yoo Recruit LTD","07876","551.67","Agency Staff","130184516","16/08/2017","Service Director Adults","Adult Care Scanning Team","R1100"
"Wolverhampton City Council","http://opendatacommunities.org/id/metropolitan-district-council/wolverhampton","710928","Yoo Recruit LTD","07837","323.83","Agency Staff","130184479","16/08/2017","Human Resources","Schools HR Consultants","R1100"
"Wolverhampton City Council","http://opendatacommunities.org/id/metropolitan-district-council/wolverhampton","710928","Yoo Recruit LTD","07996","123.69","Agency Staff","130185784","23/08/2017","Visitor Economy","Education And Access","R1100"
"Wolverhampton City Council","http://opendatacommunities.org/id/metropolitan-district-council/wolverhampton","710928","Yoo Recruit LTD","I0746","342.13","Agency Staff","130185789","23/08/2017","Emergency Duty Team","Emergency Duty Team","R1100"
"Wolverhampton City Council","http://opendatacommunities.org/id/metropolitan-district-council/wolverhampton","710928","Yoo Recruit LTD","07970","405.06","Agency Staff","130185759","23/08/2017","School Planning & Resources","Technical Support","R1100"
"Wolverhampton City Council","http://opendatacommunities.org/id/metropolitan-district-council/wolverhampton","710928","Yoo Recruit LTD","07923","1,478.17","Agency Staff","130185713","23/08/2017","Licensing","Licensing - Private Hire Vehicles","R1100"
"Wolverhampton City Council","http://opendatacommunities.org/id/metropolitan-district-council/wolverhampton","710928","Yoo Recruit LTD","07987","496.91","Agency Staff","130185776","23/08/2017","Licensing","Licensing - Private Hire Vehicles","R1100"
"Wolverhampton City Council","http://opendatacommunities.org/id/metropolitan-district-council/wolverhampton","710928","Yoo Recruit LTD","07994","34.22","Agency Staff","130185782","23/08/2017","Visitor Economy","The Little Civic","R1100"
"Wolverhampton City Council","http://opendatacommunities.org/id/metropolitan-district-council/wolverhampton","710928","Yoo Recruit LTD","07960","201.24","Agency Staff","130185749","23/08/2017","Parking Services","Shopmobility","R1100"
"Wolverhampton City Council","http://opendatacommunities.org/id/metropolitan-district-council/wolverhampton","710928","Yoo Recruit LTD","07955","229.19","Agency Staff","130185744","23/08/2017","Parking Services","Shopmobility","R1100"
"Wolverhampton City Council","http://opendatacommunities.org/id/metropolitan-district-council/wolverhampton","710928","Yoo Recruit LTD","CAP1068","1,208.55","Agency Staff","130185094","23/08/2017","Adults Assessment & Care Management West","Hospital Team","R1100"
"Wolverhampton City Council","http://opendatacommunities.org/id/metropolitan-district-council/wolverhampton","710928","Yoo Recruit LTD","07559","342.55","Agency Staff","130182813","04/08/2017","Visitor Economy","Front of House","R1100"
"Wolverhampton City Council","http://opendatacommunities.org/id/metropolitan-district-council/wolverhampton","710928","Yoo Recruit LTD","07333","268.33","Agency Staff","130180571","04/08/2017","Leisure Services","WV Active Business Support","R1100"
"Wolverhampton City Council","http://opendatacommunities.org/id/metropolitan-district-council/wolverhampton","710928","Yoo Recruit LTD","07206","276.76","Agency Staff","130179456","04/08/2017","Leisure Services","WV Active Business Support","R1100"
"Wolverhampton City Council","http://opendatacommunities.org/id/metropolitan-district-council/wolverhampton","710928","Yoo Recruit LTD","07536","1,723.85","Agency Staff","130182793","04/08/2017","Strategic Director Place","Business Manager - Place","R1100"
"Wolverhampton City Council","http://opendatacommunities.org/id/metropolitan-district-council/wolverhampton","710928","Yoo Recruit LTD","L2733","14.85","Agency Staff","130180283","04/08/2017","Child Protection","Childrens with Disabilities Team","R1100"
"Wolverhampton City Council","http://opendatacommunities.org/id/metropolitan-district-council/wolverhampton","710928","Yoo Recruit LTD","07550","724.46","Agency Staff","130182805","04/08/2017","Safeguarding","Safeguarding & Quality Administration","R1100"
"Wolverhampton City Council","http://opendatacommunities.org/id/metropolitan-district-council/wolverhampton","710928","Yoo Recruit LTD","07655","1,048.42","Agency Staff","130183670","16/08/2017","Child Protection","MASH","R1100"
"Wolverhampton City Council","http://opendatacommunities.org/id/metropolitan-district-council/wolverhampton","710928","Yoo Recruit LTD","07871","1,228.80","TPP - Social Care Support Services","130184513","16/08/2017","Safeguarding","MCA General","R5501"
"Wolverhampton City Council","http://opendatacommunities.org/id/metropolitan-district-council/wolverhampton","710928","Yoo Recruit LTD","07574","839.16","Agency Staff","130182826","04/08/2017","Learning Disability Provider","Ernest Bold Court","R1100"
"Wolverhampton City Council","http://opendatacommunities.org/id/metropolitan-district-council/wolverhampton","710928","Yoo Recruit LTD","07579","422.17","Agency Staff","130182830","04/08/2017","Environmental Maintenance","Ground Maintenance East","R1100"
"Wolverhampton City Council","http://opendatacommunities.org/id/metropolitan-district-council/wolverhampton","710928","Yoo Recruit LTD","07575","452.88","Agency Staff","130182827","04/08/2017","Early Intervention","HOS Early Intervention","R1100"
"Wolverhampton City Council","http://opendatacommunities.org/id/metropolitan-district-council/wolverhampton","710928","Yoo Recruit LTD","07542","807.35","Agency Staff","130182798","04/08/2017","Adult Education","Educational Studies Delivery Area","R1100"
"Wolverhampton City Council","http://opendatacommunities.org/id/metropolitan-district-council/wolverhampton","710928","Yoo Recruit LTD","07441","408.85","Agency Staff","130181616","04/08/2017","Environmental Maintenance","Graffiti Removal Team","R1100"
"Wolverhampton City Council","http://opendatacommunities.org/id/metropolitan-district-council/wolverhampton","710928","Yoo Recruit LTD","07497","465.46","Agency Staff","130181671","04/08/2017","Customer Services","City Direct","R1100"
"Wolverhampton City Council","http://opendatacommunities.org/id/metropolitan-district-council/wolverhampton","710928","Yoo Recruit LTD","07773","3,764.42","Agency Staff","130184427","23/08/2017","Youth Offending","Youth Offending Team","R1100"
"Wolverhampton City Council","http://opendatacommunities.org/id/metropolitan-district-council/wolverhampton","710928","Yoo Recruit LTD","07849","724.46","Agency Staff","130184491","23/08/2017","Youth Offending","Youth Offending Team","R1100"
"Wolverhampton City Council","http://opendatacommunities.org/id/metropolitan-district-council/wolverhampton","710928","Yoo Recruit LTD","07879","123.69","Agency Staff","130184519","16/08/2017","Visitor Economy","Education And Access","R1100"
"Wolverhampton City Council","http://opendatacommunities.org/id/metropolitan-district-council/wolverhampton","710928","Yoo Recruit LTD","07768","1,067.69","Agency Staff","130184423","16/08/2017","Markets","Wolverhampton Indoor and Open Market","R1100"
"Wolverhampton City Council","http://opendatacommunities.org/id/metropolitan-district-council/wolverhampton","710928","Yoo Recruit LTD","07845","409.61","Agency Staff","130184487","16/08/2017","School Planning & Resources","Pupil & Student Support","R1100"
"Wolverhampton City Council","http://opendatacommunities.org/id/metropolitan-district-council/wolverhampton","710928","Yoo Recruit LTD","07026","106.94","Agency Staff","130184235","16/08/2017","Visitor Economy","The Little Civic","R1100"
"Wolverhampton City Council","http://opendatacommunities.org/id/metropolitan-district-council/wolverhampton","710928","Yoo Recruit LTD","C0355","-1,367.84","Agency Staff","130184736","23/08/2017","Looked After Children","Fostering Team & Allowances","R1100"
"Wolverhampton City Council","http://opendatacommunities.org/id/metropolitan-district-council/wolverhampton","710928","Yoo Recruit LTD","07881","465.46","Agency Staff","130184521","23/08/2017","Early Intervention","HOS Early Intervention","R1100"
"Wolverhampton City Council","http://opendatacommunities.org/id/metropolitan-district-council/wolverhampton","710928","Yoo Recruit LTD","CAP1027","2,589.26","Agency Staff","130183116","09/08/2017","Child Protection","CIN/CP Social Work Unit - Area 5","R1100"
"Wolverhampton City Council","http://opendatacommunities.org/id/metropolitan-district-council/wolverhampton","710928","Yoo Recruit LTD","CAP1027","0.14","Agency Staff","130183116","09/08/2017","Child Protection","CIN/CP Social Work Unit - Area 5","R1100"
"Wolverhampton City Council","http://opendatacommunities.org/id/metropolitan-district-council/wolverhampton","710928","Yoo Recruit LTD","CAP0988","1,290.06","Agency Staff","130180777","09/08/2017","Looked After Children","Looked After Team 1","R1100"
"Wolverhampton City Council","http://opendatacommunities.org/id/metropolitan-district-council/wolverhampton","710928","Yoo Recruit LTD","07562","1,092.16","Agency Staff","130182815","09/08/2017","Corporate Communications","Communications & Marketing - General","R1100"
"Wolverhampton City Council","http://opendatacommunities.org/id/metropolitan-district-council/wolverhampton","710928","Yoo Recruit LTD","07535","3,818.96","Agency Staff","130183104","09/08/2017","Learning Disability Provider","Duke Street Bungalows","R1100"
"Wolverhampton City Council","http://opendatacommunities.org/id/metropolitan-district-council/wolverhampton","710928","Yoo Recruit LTD","CAP1051","1,208.55","Agency Staff","130183339","09/08/2017","Adults Assessment & Care Management East","Adult Services � East","R1100"
"Wolverhampton City Council","http://opendatacommunities.org/id/metropolitan-district-council/wolverhampton","710928","Yoo Recruit LTD","07558","930.92","Agency Staff","130182812","09/08/2017","Customer Services","City Direct","R1100"
"Wolverhampton City Council","http://opendatacommunities.org/id/metropolitan-district-council/wolverhampton","710928","Yoo Recruit LTD","L2901","1,303.94","Agency Staff","130182460","09/08/2017","Looked After Children","Looked After Team 1","R1100"
"Wolverhampton City Council","http://opendatacommunities.org/id/metropolitan-district-council/wolverhampton","710928","Yoo Recruit LTD","07619","724.46","Agency Staff","130182866","09/08/2017","Customer Services","City Direct","R1100"
"Wolverhampton City Council","http://opendatacommunities.org/id/metropolitan-district-council/wolverhampton","710928","Yoo Recruit LTD","07600","173.29","Agency Staff","130182847","09/08/2017","Parking Services","Shopmobility","R1100"
"Wolverhampton City Council","http://opendatacommunities.org/id/metropolitan-district-council/wolverhampton","710928","Yoo Recruit LTD","07612","465.46","Agency Staff","130182859","09/08/2017","Customer Services","City Direct","R1100"
"Wolverhampton City Council","http://opendatacommunities.org/id/metropolitan-district-council/wolverhampton","710928","Yoo Recruit LTD","07621","402.56","Agency Staff","130182868","09/08/2017","Customer Services","City Direct","R1100"
"Wolverhampton City Council","http://opendatacommunities.org/id/metropolitan-district-council/wolverhampton","710928","Yoo Recruit LTD","07487","371.11","Agency Staff","130181661","09/08/2017","Customer Services","City Direct","R1100"
"Wolverhampton City Council","http://opendatacommunities.org/id/metropolitan-district-council/wolverhampton","710928","Yoo Recruit LTD","07363","465.46","Agency Staff","130180601","09/08/2017","Customer Services","City Direct","R1100"
"Wolverhampton City Council","http://opendatacommunities.org/id/metropolitan-district-council/wolverhampton","710928","Yoo Recruit LTD","07349","371.11","Agency Staff","130180587","09/08/2017","Customer Services","City Direct","R1100"
"Wolverhampton City Council","http://opendatacommunities.org/id/metropolitan-district-council/wolverhampton","710928","Yoo Recruit LTD","07496","465.46","Agency Staff","130181670","09/08/2017","Customer Services","City Direct","R1100"
"Wolverhampton City Council","http://opendatacommunities.org/id/metropolitan-district-council/wolverhampton","710928","Yoo Recruit LTD","07613","471.75","Agency Staff","130182860","09/08/2017","Customer Services","City Direct","R1100"
"Wolverhampton City Council","http://opendatacommunities.org/id/metropolitan-district-council/wolverhampton","710928","Yoo Recruit LTD","07526","3,409.92","Agency Staff","130181698","02/08/2017","Youth Offending","Youth Offending Team","R1100"
"Wolverhampton City Council","http://opendatacommunities.org/id/metropolitan-district-council/wolverhampton","710928","Yoo Recruit LTD","07428","439.56","Agency Staff","130181603","02/08/2017","Environmental Maintenance","Parks - Ranger Service","R1100"
"Wolverhampton City Council","http://opendatacommunities.org/id/metropolitan-district-council/wolverhampton","710928","Yoo Recruit LTD","07477","105.30","Agency Staff","130181652","02/08/2017","Youth Offending","Youth Offending Team","R1100"
"Wolverhampton City Council","http://opendatacommunities.org/id/metropolitan-district-council/wolverhampton","710928","Yoo Recruit LTD","07501","528.36","Agency Staff","130181675","02/08/2017","Learning Disability Provider","Ernest Bold Court","R1100"
"Wolverhampton City Council","http://opendatacommunities.org/id/metropolitan-district-council/wolverhampton","710928","Yoo Recruit LTD","07473","726.03","Agency Staff","130181648","02/08/2017","School Planning & Resources","Pupil & Student Support","R1100"
"Wolverhampton City Council","http://opendatacommunities.org/id/metropolitan-district-council/wolverhampton","710928","Yoo Recruit LTD","L2909","1,561.22","Agency Staff","130182468","02/08/2017","Emergency Duty Team","Emergency Duty Team","R1100"
"Wolverhampton City Council","http://opendatacommunities.org/id/metropolitan-district-council/wolverhampton","710928","Yoo Recruit LTD","07523","-376.32","Agency Staff","130181695","02/08/2017","Leisure Services","Aldersley Leisure Village","R1100"
"Wolverhampton City Council","http://opendatacommunities.org/id/metropolitan-district-council/wolverhampton","710928","Yoo Recruit LTD","07523","390.79","Agency Staff","130181695","02/08/2017","Leisure Services","Aldersley Leisure Village","R1100"
"Wolverhampton City Council","http://opendatacommunities.org/id/metropolitan-district-council/wolverhampton","710928","Yoo Recruit LTD","07599","123.69","Agency Staff","130182846","02/08/2017","Visitor Economy","Education And Access","R1100"
"Wolverhampton City Council","http://opendatacommunities.org/id/metropolitan-district-council/wolverhampton","710928","Yoo Recruit LTD","07639","377.40","Agency Staff","130182884","02/08/2017","School Planning & Resources","Technical Support","R1100"
"Wolverhampton City Council","http://opendatacommunities.org/id/metropolitan-district-council/wolverhampton","710928","Yoo Recruit LTD","07597","465.46","Agency Staff","130182845","02/08/2017","Independent Living Service","Telecare","R1100"
"Wolverhampton City Council","http://opendatacommunities.org/id/metropolitan-district-council/wolverhampton","710928","Yoo Recruit LTD","07544","465.46","Agency Staff","130182799","02/08/2017","Licensing","Licensing - Private Hire Vehicles","R1100"
"Wolverhampton City Council","http://opendatacommunities.org/id/metropolitan-district-council/wolverhampton","710928","Yoo Recruit LTD","07551","573.48","Agency Staff","130182806","02/08/2017","Emergency Duty Team","Emergency Duty Team","R1100"
"Wolverhampton City Council","http://opendatacommunities.org/id/metropolitan-district-council/wolverhampton","710928","Yoo Recruit LTD","07628","480.70","Agency Staff","130182875","02/08/2017","Licensing","Licensing - Private Hire Vehicles","R1100"
"Wolverhampton City Council","http://opendatacommunities.org/id/metropolitan-district-council/wolverhampton","710928","Yoo Recruit LTD","07522","430.08","Agency Staff","130181694","02/08/2017","Leisure Services","Aldersley Leisure Village","R1100"
"Wolverhampton City Council","http://opendatacommunities.org/id/metropolitan-district-council/wolverhampton","710928","Yoo Recruit LTD","07522","-430.08","Agency Staff","130181694","02/08/2017","Leisure Services","Aldersley Leisure Village","R1100"
"Wolverhampton City Council","http://opendatacommunities.org/id/metropolitan-district-council/wolverhampton","710928","Yoo Recruit LTD","07523","376.32","Agency Staff","130181695","02/08/2017","Leisure Services","Aldersley Leisure Village","R1100"
"Wolverhampton City Council","http://opendatacommunities.org/id/metropolitan-district-council/wolverhampton","710928","Yoo Recruit LTD","07522","427.88","Agency Staff","130181694","02/08/2017","Leisure Services","Aldersley Leisure Village","R1100"
"Wolverhampton City Council","http://opendatacommunities.org/id/metropolitan-district-council/wolverhampton","710928","Yoo Recruit LTD","07671","707.44","Agency Staff","130183682","09/08/2017","Leisure Services","WV Active Catering","R1100"
"Wolverhampton City Council","http://opendatacommunities.org/id/metropolitan-district-council/wolverhampton","710928","Yoo Recruit LTD","07518","28.53","Agency Staff","130181691","11/08/2017","Leisure Services","Central Baths","R1100"
"Wolverhampton City Council","http://opendatacommunities.org/id/metropolitan-district-council/wolverhampton","710928","Yoo Recruit LTD","07700","134.16","Agency Staff","130183711","11/08/2017","Markets","Wednesfield Street Market","R1100"
"Wolverhampton City Council","http://opendatacommunities.org/id/metropolitan-district-council/wolverhampton","710928","Yoo Recruit LTD","07672","320.79","Agency Staff","130183683","09/08/2017","Looked After Children","Adoption and Residence Team & Allowances","R1100"
"Wolverhampton City Council","http://opendatacommunities.org/id/metropolitan-district-council/wolverhampton","710928","Yoo Recruit LTD","07583","434.63","Agency Staff","130183668","09/08/2017","Licensing","Licensing - Private Hire Vehicles","R1100"
"Wolverhampton City Council","http://opendatacommunities.org/id/metropolitan-district-council/wolverhampton","710928","Yoo Recruit LTD","07727","465.46","Agency Staff","130183734","09/08/2017","Revenues & Benefits","Debt Management","R1100"
"Wolverhampton City Council","http://opendatacommunities.org/id/metropolitan-district-council/wolverhampton","710928","Yoo Recruit LTD","07498","85.58","Agency Staff","130181672","09/08/2017","Democratic Services","Information Governance","R1100"
"Wolverhampton City Council","http://opendatacommunities.org/id/metropolitan-district-council/wolverhampton","710928","Yoo Recruit LTD","07865","724.46","Agency Staff","130184507","18/08/2017","Corporate Business Support","Corporate Programmes","R1100"
"Wolverhampton City Council","http://opendatacommunities.org/id/metropolitan-district-council/wolverhampton","710928","Yoo Recruit LTD","L2946","49.27","TPP - Social Care Support Services","130185115","18/08/2017","Safeguarding","MCA General","R5501"
"Wolverhampton City Council","http://opendatacommunities.org/id/metropolitan-district-council/wolverhampton","710928","Yoo Recruit LTD","C0358","-543.90","Agency Staff","130185282","18/08/2017","Learning Disability Provider","Ernest Bold Court","R1100"
"Wolverhampton City Council","http://opendatacommunities.org/id/metropolitan-district-council/wolverhampton","710928","Yoo Recruit LTD","07697","1,577.31","Agency Staff","130183708","18/08/2017","Learning Disability Provider","Ernest Bold Court","R1100"
"Wolverhampton City Council","http://opendatacommunities.org/id/metropolitan-district-council/wolverhampton","710928","Yoo Recruit LTD","07669","763.62","Agency Staff","130183681","18/08/2017","Looked After Children","Pupil Premium","R1100"
"Wolverhampton City Council","http://opendatacommunities.org/id/metropolitan-district-council/wolverhampton","710928","Yoo Recruit LTD","07877","2,730.80","Agency Staff","130184517","18/08/2017","Commercial Services","Corporate Procurement Unit","R1100"
"Wolverhampton City Council","http://opendatacommunities.org/id/metropolitan-district-council/wolverhampton","710928","Yoo Recruit LTD","07803","1,172.96","Agency Staff","130184727","18/08/2017","Leisure Services","Aldersley Leisure Village","R1100"
"Wolverhampton City Council","http://opendatacommunities.org/id/metropolitan-district-council/wolverhampton","710928","Yoo Recruit LTD","CAP1067","792.72","TPP - Social Care Support Services","130185093","18/08/2017","Safeguarding","MCA General","R5501"
"Wolverhampton City Council","http://opendatacommunities.org/id/metropolitan-district-council/wolverhampton","710928","Yoo Recruit LTD","07088","650.37","Agency Staff","130178329","09/08/2017","Leisure Services","Central Baths","R1100"
"Wolverhampton City Council","http://opendatacommunities.org/id/metropolitan-district-council/wolverhampton","710928","Yoo Recruit LTD","07785","396.89","Agency Staff","130184437","18/08/2017","Markets","Bilston Market and Licensed Operations","R1100"
"Wolverhampton City Council","http://opendatacommunities.org/id/metropolitan-district-council/wolverhampton","710928","Yoo Recruit LTD","L2872","12,122.56","Agency Staff","130180296","09/08/2017","Child Protection","CIN/CP Social Work Unit - Area 1","R1100"
"Wolverhampton City Council","http://opendatacommunities.org/id/metropolitan-district-council/wolverhampton","710928","Yoo Recruit LTD","L2872","939.79","Agency Staff","130180296","09/08/2017","Child Protection","CIN/CP Social Work Unit - Area 1","R1100"
"Wolverhampton City Council","http://opendatacommunities.org/id/metropolitan-district-council/wolverhampton","710928","Yoo Recruit LTD","07571","660.45","Agency Staff","130182824","09/08/2017","Legal Services","Legal Services","R1100"
"Wolverhampton City Council","http://opendatacommunities.org/id/metropolitan-district-council/wolverhampton","710928","Yoo Recruit LTD","07596","1,796.60","Agency Staff","130182844","09/08/2017","Inclusion Support","Inclusion Support","R1100"
"Wolverhampton City Council","http://opendatacommunities.org/id/metropolitan-district-council/wolverhampton","710928","Yoo Recruit LTD","07829","905.58","Agency Staff","130184472","18/08/2017","Visitor Economy","Bantock - Tea Rooms","R1100"
"Wolverhampton City Council","http://opendatacommunities.org/id/metropolitan-district-council/wolverhampton","710928","Yoo Recruit LTD","07397","506.35","Agency Staff","130181573","09/08/2017","Leisure Services","Central Baths","R1100"
"Wolverhampton City Council","http://opendatacommunities.org/id/metropolitan-district-council/wolverhampton","710928","Yoo Recruit LTD","07646","497.28","Agency Staff","130182891","09/08/2017","Looked After Children","Pupil Premium","R1100"
"Wolverhampton City Council","http://opendatacommunities.org/id/metropolitan-district-council/wolverhampton","710928","Yoo Recruit LTD","07534","466.81","Agency Staff","130182792","09/08/2017","Youth Offending","Youth Offending Team","R1100"
"Wolverhampton City Council","http://opendatacommunities.org/id/metropolitan-district-council/wolverhampton","710928","Yoo Recruit LTD","07640","860.86","Agency Staff","130182885","09/08/2017","Visitor Economy","Bantock - Tea Rooms","R1100"
"Wolverhampton City Council","http://opendatacommunities.org/id/metropolitan-district-council/wolverhampton","710928","Yoo Recruit LTD","07606","287.49","Agency Staff","130182853","09/08/2017","Transportation","Advisory Road Markings and Disabled Bays","R1100"
"Wolverhampton City Council","http://opendatacommunities.org/id/metropolitan-district-council/wolverhampton","710928","Yoo Recruit LTD","07590","422.17","Agency Staff","130182838","09/08/2017","Environmental Maintenance","Ground Maintenance East","R1100"
"Wolverhampton City Council","http://opendatacommunities.org/id/metropolitan-district-council/wolverhampton","710928","Yoo Recruit LTD","07608","134.16","Agency Staff","130182855","09/08/2017","Parking Services","Shopmobility","R1100"
"Wolverhampton City Council","http://opendatacommunities.org/id/metropolitan-district-council/wolverhampton","710928","Yoo Recruit LTD","07512","440.30","Agency Staff","130181685","09/08/2017","Customer Services","City Direct","R1100"
"Wolverhampton City Council","http://opendatacommunities.org/id/metropolitan-district-council/wolverhampton","710928","Yoo Recruit LTD","07482","276.76","Agency Staff","130181657","09/08/2017","Customer Services","City Direct","R1100"
"Wolverhampton City Council","http://opendatacommunities.org/id/metropolitan-district-council/wolverhampton","710928","Yoo Recruit LTD","CAP1034","1,717.33","Agency Staff","130183123","09/08/2017","Looked After Children","LAC Transitions Team","R1100"
"Wolverhampton City Council","http://opendatacommunities.org/id/metropolitan-district-council/wolverhampton","710928","Yoo Recruit LTD","07491","695.09","Agency Staff","130181665","09/08/2017","Customer Services","City Direct","R1100"
"Wolverhampton City Council","http://opendatacommunities.org/id/metropolitan-district-council/wolverhampton","710928","Yoo Recruit LTD","CAP1041","795.42","TPP - Social Care Support Services","130183130","09/08/2017","Safeguarding","MCA General","R5501"
"Wolverhampton City Council","http://opendatacommunities.org/id/metropolitan-district-council/wolverhampton","710928","Yoo Recruit LTD","07954","484.33","Agency Staff","130185743","30/08/2017","Customer Services","City Direct","R1100"
"Wolverhampton City Council","http://opendatacommunities.org/id/metropolitan-district-council/wolverhampton","710928","Yoo Recruit LTD","07967","465.46","Agency Staff","130185756","30/08/2017","Customer Services","City Direct","R1100"
"Wolverhampton City Council","http://opendatacommunities.org/id/metropolitan-district-council/wolverhampton","710928","Yoo Recruit LTD","I0750","5,980.00","Agency Staff","130185962","30/08/2017","Central Corporate Budgets","Combined Authority","R1100"
"Wolverhampton City Council","http://opendatacommunities.org/id/metropolitan-district-council/wolverhampton","710928","Yoo Recruit LTD","07698","226.44","Agency Staff","130183709","30/08/2017","Customer Services","City Direct","R1100"
"Wolverhampton City Council","http://opendatacommunities.org/id/metropolitan-district-council/wolverhampton","710928","Yoo Recruit LTD","08019","735.82","Agency Staff","130186381","30/08/2017","Looked After Children","Pupil Premium","R1100"
"Wolverhampton City Council","http://opendatacommunities.org/id/metropolitan-district-council/wolverhampton","710928","Yoo Recruit LTD","07642","371.11","Agency Staff","130182887","30/08/2017","Customer Services","City Direct","R1100"
"Wolverhampton City Council","http://opendatacommunities.org/id/metropolitan-district-council/wolverhampton","710928","Yoo Recruit LTD","07878","94.35","Agency Staff","130184518","30/08/2017","Customer Services","City Direct","R1100"
"Wolverhampton City Council","http://opendatacommunities.org/id/metropolitan-district-council/wolverhampton","710928","Yoo Recruit LTD","07738","465.46","Agency Staff","130183745","30/08/2017","Customer Services","City Direct","R1100"
"Wolverhampton City Council","http://opendatacommunities.org/id/metropolitan-district-council/wolverhampton","710928","Yoo Recruit LTD","07757","440.30","Agency Staff","130183762","30/08/2017","Customer Services","City Direct","R1100"
"Wolverhampton City Council","http://opendatacommunities.org/id/metropolitan-district-council/wolverhampton","710928","Yoo Recruit LTD","07853","465.46","Agency Staff","130184495","30/08/2017","Customer Services","City Direct","R1100"
"Wolverhampton City Council","http://opendatacommunities.org/id/metropolitan-district-council/wolverhampton","710928","Yoo Recruit LTD","07758","465.46","Agency Staff","130183763","30/08/2017","Customer Services","City Direct","R1100"
"Wolverhampton City Council","http://opendatacommunities.org/id/metropolitan-district-council/wolverhampton","710928","Yoo Recruit LTD","07749","471.75","Agency Staff","130183756","30/08/2017","Customer Services","City Direct","R1100"
"Wolverhampton City Council","http://opendatacommunities.org/id/metropolitan-district-council/wolverhampton","710928","Yoo Recruit LTD","07861","538.45","Agency Staff","130184503","30/08/2017","Customer Services","City Direct","R1100"
"Wolverhampton City Council","http://opendatacommunities.org/id/metropolitan-district-council/wolverhampton","710928","Yoo Recruit LTD","07984","452.88","Agency Staff","130185773","30/08/2017","Customer Services","City Direct","R1100"
"Wolverhampton City Council","http://opendatacommunities.org/id/metropolitan-district-council/wolverhampton","710928","Yoo Recruit LTD","07929","283.05","Agency Staff","130185719","30/08/2017","Customer Services","City Direct","R1100"
"Wolverhampton City Council","http://opendatacommunities.org/id/metropolitan-district-council/wolverhampton","710928","Yoo Recruit LTD","07968","587.40","Agency Staff","130185757","30/08/2017","Customer Services","City Direct","R1100"
"Wolverhampton City Council","http://opendatacommunities.org/id/metropolitan-district-council/wolverhampton","710928","Yoo Recruit LTD","07789","673.03","Agency Staff","130184439","30/08/2017","Customer Services","City Direct","R1100"
"Wolverhampton City Council","http://opendatacommunities.org/id/metropolitan-district-council/wolverhampton","710928","Yoo Recruit LTD","08107","804.96","Agency Staff","130186462","30/08/2017","School Planning & Resources","Special - Transport","R1100"
"Wolverhampton City Council","http://opendatacommunities.org/id/metropolitan-district-council/wolverhampton","710928","Yoo Recruit LTD","07154","1,455.13","Agency Staff","130179415","30/08/2017","Leisure Services","WV Active Business Support","R1100"
"Wolverhampton City Council","http://opendatacommunities.org/id/metropolitan-district-council/wolverhampton","710928","Yoo Recruit LTD","08049","44.72","Agency Staff","130186407","30/08/2017","Markets","Wednesfield Street Market","R1100"
"Wolverhampton City Council","http://opendatacommunities.org/id/metropolitan-district-council/wolverhampton","710928","Yoo Recruit LTD","08013","201.24","Agency Staff","130186376","30/08/2017","Parking Services","Shopmobility","R1100"
"Wolverhampton City Council","http://opendatacommunities.org/id/metropolitan-district-council/wolverhampton","710928","Yoo Recruit LTD","07838","264.18","Agency Staff","130184480","30/08/2017","Leisure Services","WV Active Business Support","R1100"
"Wolverhampton City Council","http://opendatacommunities.org/id/metropolitan-district-council/wolverhampton","710928","Yoo Recruit LTD","07592","574.98","Agency Staff","130182840","30/08/2017","Service Director Adults","Adult Care Scanning Team","R1100"
"Wolverhampton City Council","http://opendatacommunities.org/id/metropolitan-district-council/wolverhampton","710928","Yoo Recruit LTD","07938","1,416.55","Agency Staff","130185727","30/08/2017","Governance Services","Scrutiny","R1100"
"Wolverhampton City Council","http://opendatacommunities.org/id/metropolitan-district-council/wolverhampton","710928","Yoo Recruit LTD","CAP1085","651.85","Agency Staff","130185111","30/08/2017","Child Protection","Childrens with Disabilities Team","R1100"
"Wolverhampton City Council","http://opendatacommunities.org/id/metropolitan-district-council/wolverhampton","710928","Yoo Recruit LTD","07922","1,329.30","Agency Staff","130185712","30/08/2017","Looked After Children","Adoption and Residence Team & Allowances","R1100"
"Wolverhampton City Council","http://opendatacommunities.org/id/metropolitan-district-council/wolverhampton","710928","Yoo Recruit LTD","07930","944.70","Agency Staff","130185720","30/08/2017","Headstart","Headstart - Learning Technologies Team","R1100"
"Wolverhampton City Council","http://opendatacommunities.org/id/metropolitan-district-council/wolverhampton","710928","Yoo Recruit LTD","07889","1,672.65","Agency Staff","130185680","30/08/2017","Emergency Duty Team","Emergency Duty Team","R1100"
"Wolverhampton City Council","http://opendatacommunities.org/id/metropolitan-district-council/wolverhampton","710928","Yoo Recruit LTD","07977","695.09","Agency Staff","130185766","30/08/2017","Customer Services","City Direct","R1100"
"Wolverhampton City Council","http://opendatacommunities.org/id/metropolitan-district-council/wolverhampton","710928","Yoo Recruit LTD","08071","132.60","Agency Staff","130186428","30/08/2017","Visitor Economy","Bantock House Museum","R1100"
"Wolverhampton City Council","http://opendatacommunities.org/id/metropolitan-district-council/wolverhampton","710928","Yoo Recruit LTD","CAP1081","4,164.03","Agency Staff","130185107","25/08/2017","Child Protection","CIN/CP Social Work Unit - Area 5","R1100"
"Wolverhampton City Council","http://opendatacommunities.org/id/metropolitan-district-council/wolverhampton","710928","Yoo Recruit LTD","07896","134.16","Agency Staff","130185687","25/08/2017","Environmental Maintenance","Ground Maintenance East","R1100"
"Wolverhampton City Council","http://opendatacommunities.org/id/metropolitan-district-council/wolverhampton","710928","Yoo Recruit LTD","07978","745.60","Agency Staff","130185767","25/08/2017","Audit Services","Audit Services","R1100"
"Wolverhampton City Council","http://opendatacommunities.org/id/metropolitan-district-council/wolverhampton","710928","Yoo Recruit LTD","07903","336.60","Agency Staff","130185693","25/08/2017","Environmental Maintenance","Ground Maintenance East","R1100"
"Wolverhampton City Council","http://opendatacommunities.org/id/metropolitan-district-council/wolverhampton","710928","Yoo Recruit LTD","07905","422.17","Agency Staff","130185695","25/08/2017","Environmental Maintenance","Ground Maintenance East","R1100"
"Wolverhampton City Council","http://opendatacommunities.org/id/metropolitan-district-council/wolverhampton","710928","Yoo Recruit LTD","07980","550.53","Agency Staff","130185769","25/08/2017","Democratic Services","Information Governance","R1100"
"Wolverhampton City Council","http://opendatacommunities.org/id/metropolitan-district-council/wolverhampton","710928","Yoo Recruit LTD","07560","967.37","Agency Staff","130183501","11/08/2017","Learning Disability Provider","Duke Street Bungalows","R1100"
"Wolverhampton City Council","http://opendatacommunities.org/id/metropolitan-district-council/wolverhampton","710928","Yoo Recruit LTD","07670","758.76","Agency Staff","130183968","11/08/2017","Leisure Services","WV Active Catering - Central","R1100"
"Wolverhampton City Council","http://opendatacommunities.org/id/metropolitan-district-council/wolverhampton","710928","Yoo Recruit LTD","07645","470.67","Agency Staff","130182890","11/08/2017","Democratic Services","Information Governance","R1100"
"Wolverhampton City Council","http://opendatacommunities.org/id/metropolitan-district-council/wolverhampton","710928","Yoo Recruit LTD","CAP1060","1,208.55","Agency Staff","130183348","11/08/2017","Adults Assessment & Care Management West","Hospital Team","R1100"
"Wolverhampton City Council","http://opendatacommunities.org/id/metropolitan-district-council/wolverhampton","710928","Yoo Recruit LTD","07847","465.46","Agency Staff","130184489","16/08/2017","Looked After Children","Fostering Team & Allowances","R1100"
"Wolverhampton City Council","http://opendatacommunities.org/id/metropolitan-district-council/wolverhampton","710928","Yoo Recruit LTD","07723","466.81","Agency Staff","130183730","16/08/2017","Youth Offending","Youth Offending Team","R1100"
"Wolverhampton City Council","http://opendatacommunities.org/id/metropolitan-district-council/wolverhampton","710928","Yoo Recruit LTD","07745","427.35","Agency Staff","130183752","16/08/2017","Specialist Support","Upper Pendeford Farm Short Breaks Centre","R1100"
"Wolverhampton City Council","http://opendatacommunities.org/id/metropolitan-district-council/wolverhampton","710928","Yoo Recruit LTD","07685","596.17","Agency Staff","130183696","16/08/2017","Strategic Organisation Development","Global Budgets","R1100"
"Wolverhampton City Council","http://opendatacommunities.org/id/metropolitan-district-council/wolverhampton","710928","Yoo Recruit LTD","07696","408.85","Agency Staff","130183707","11/08/2017","Environmental Maintenance","Graffiti Removal Team","R1100"
"Wolverhampton City Council","http://opendatacommunities.org/id/metropolitan-district-council/wolverhampton","710928","Yoo Recruit LTD","07762","724.46","Agency Staff","130183767","11/08/2017","Safeguarding","Safeguarding & Quality Administration","R1100"
"Wolverhampton City Council","http://opendatacommunities.org/id/metropolitan-district-council/wolverhampton","710928","Yoo Recruit LTD","07720","465.46","Agency Staff","130183727","11/08/2017","Safeguarding","Safeguarding & Quality Administration","R1100"
"Wolverhampton City Council","http://opendatacommunities.org/id/metropolitan-district-council/wolverhampton","710928","Yoo Recruit LTD","07668","422.17","Agency Staff","130183680","11/08/2017","Environmental Maintenance","Ground Maintenance East","R1100"
"Wolverhampton City Council","http://opendatacommunities.org/id/metropolitan-district-council/wolverhampton","710928","Yoo Recruit LTD","07502","724.46","Agency Staff","130181676","11/08/2017","Corporate Business Support","Corporate Programmes","R1100"
"Wolverhampton City Council","http://opendatacommunities.org/id/metropolitan-district-council/wolverhampton","710928","Yoo Recruit LTD","I0719","7,590.00","Agency Staff","130180085","11/08/2017","Corporate Business Support","Corporate Programmes","R1100"
"Wolverhampton City Council","http://opendatacommunities.org/id/metropolitan-district-council/wolverhampton","710928","Yoo Recruit LTD","CAP1020","3,010.05","Agency Staff","130183114","11/08/2017","Child Protection","CIN/CP Social Work Unit - Area 3","R1100"
"Wolverhampton City Council","http://opendatacommunities.org/id/metropolitan-district-council/wolverhampton","710928","Yoo Recruit LTD","CAP0928","3,979.03","Agency Staff","130183109","11/08/2017","Child Protection","CIN/CP Social Work Unit - Area 3","R1100"
"Wolverhampton City Council","http://opendatacommunities.org/id/metropolitan-district-council/wolverhampton","710928","Yoo Recruit LTD","07722","201.24","Agency Staff","130183729","16/08/2017","Parking Services","Shopmobility","R1100"
"Wolverhampton City Council","http://opendatacommunities.org/id/metropolitan-district-council/wolverhampton","710928","Yoo Recruit LTD","07765","8,308.13","Agency Staff","130184420","16/08/2017","Looked After Children","Adoption and Residence Team & Allowances","R1100"
"Wolverhampton City Council","http://opendatacommunities.org/id/metropolitan-district-council/wolverhampton","710928","Yoo Recruit LTD","07717","229.19","Agency Staff","130183725","16/08/2017","Parking Services","Shopmobility","R1100"
"Wolverhampton City Council","http://opendatacommunities.org/id/metropolitan-district-council/wolverhampton","710928","Yoo Recruit LTD","07730","167.70","Agency Staff","130183737","16/08/2017","Parking Services","Shopmobility","R1100"
"Wolverhampton City Council","http://opendatacommunities.org/id/metropolitan-district-council/wolverhampton","710928","Yoo Recruit LTD","07880","1,376.89","Agency Staff","130184520","16/08/2017","Child Protection","Head of Service - CINCP","R1100"
"Wolverhampton City Council","http://opendatacommunities.org/id/metropolitan-district-council/wolverhampton","710928","Yoo Recruit LTD","07851","255.17","Agency Staff","130184493","16/08/2017","Strategic Director Place","Business Manager - Place","R1100"
"Wolverhampton City Council","http://opendatacommunities.org/id/metropolitan-district-council/wolverhampton","710928","Yoo Recruit LTD","07702","3,114.37","Agency Staff","130183712","16/08/2017","Human Resources","HR Investigations","R1100"
"Wolverhampton City Council","http://opendatacommunities.org/id/metropolitan-district-council/wolverhampton","710928","Yoo Recruit LTD","07825","3,310.61","Agency Staff","130184731","16/08/2017","Human Resources","HR Investigations","R1100"
"Wolverhampton City Council","http://opendatacommunities.org/id/metropolitan-district-council/wolverhampton","710928","Yoo Recruit LTD","07820","563.33","Agency Staff","130184465","16/08/2017","Learning Disability Provider","City Links","R1100"
"Wolverhampton City Council","http://opendatacommunities.org/id/metropolitan-district-council/wolverhampton","710928","Yoo Recruit LTD","07809","422.17","Agency Staff","130184454","16/08/2017","Environmental Maintenance","Ground Maintenance East","R1100"
"Wolverhampton City Council","http://opendatacommunities.org/id/metropolitan-district-council/wolverhampton","710928","Yoo Recruit LTD","07743","709.41","Agency Staff","130183750","16/08/2017","Audit Services","Audit Services","R1100"
"Wolverhampton City Council","http://opendatacommunities.org/id/metropolitan-district-council/wolverhampton","710928","Yoo Recruit LTD","07729","422.17","Agency Staff","130183736","16/08/2017","Environmental Maintenance","Ground Maintenance East","R1100"
"Wolverhampton City Council","http://opendatacommunities.org/id/metropolitan-district-council/wolverhampton","710928","Yoo Recruit LTD","07027","698.75","Agency Staff","130184236","16/08/2017","Visitor Economy","Bantock - Tea Rooms","R1100"
"Wolverhampton City Council","http://opendatacommunities.org/id/metropolitan-district-council/wolverhampton","710928","Yoo Recruit LTD","I0741","7,101.25","Agency Staff","130184751","16/08/2017","Commercial Services","Corporate Procurement Unit","R1100"
"Wolverhampton City Council","http://opendatacommunities.org/id/metropolitan-district-council/wolverhampton","710928","Yoo Recruit LTD","07479","256.73","Agency Staff","130181654","02/08/2017","Environmental Maintenance","Ground Maintenance East","R1100"
"Wolverhampton City Council","http://opendatacommunities.org/id/metropolitan-district-council/wolverhampton","710928","Yoo Recruit LTD","L2906","1,727.06","Agency Staff","130182465","02/08/2017","Emergency Duty Team","Emergency Duty Team","R1100"
"Wolverhampton City Council","http://opendatacommunities.org/id/metropolitan-district-council/wolverhampton","710928","Yoo Recruit LTD","07414","606.48","Agency Staff","130181589","02/08/2017","Adult Education","Staff Development","R1100"
"Wolverhampton City Council","http://opendatacommunities.org/id/metropolitan-district-council/wolverhampton","710928","Yoo Recruit LTD","07436","19.96","Agency Staff","130181611","02/08/2017","Adult Education","Work Related Studies","R1100"
"Wolverhampton City Council","http://opendatacommunities.org/id/metropolitan-district-council/wolverhampton","710928","Yoo Recruit LTD","L2914","3,902.64","Agency Staff","130182473","02/08/2017","Child Protection","CIN/CP Social Work Unit - Area 8","R1100"
"Wolverhampton City Council","http://opendatacommunities.org/id/metropolitan-district-council/wolverhampton","710928","Yoo Recruit LTD","07435","254.75","Agency Staff","130181610","02/08/2017","Customer Services","City Direct","R1100"
"Wolverhampton City Council","http://opendatacommunities.org/id/metropolitan-district-council/wolverhampton","710928","Yoo Recruit LTD","07624","465.46","Agency Staff","130182871","02/08/2017","Housing","Private Sector Housing","R1100"
"Wolverhampton City Council","http://opendatacommunities.org/id/metropolitan-district-council/wolverhampton","710928","Yoo Recruit LTD","07566","959.27","Agency Staff","130182819","02/08/2017","Headstart","Headstart - Learning Technologies Team","R1100"
"Wolverhampton City Council","http://opendatacommunities.org/id/metropolitan-district-council/wolverhampton","710928","Yoo Recruit LTD","07443","1,542.21","Agency Staff","130181618","02/08/2017","Standards and Vulnerable Pupils","Music Support Team","R1100"
"Wolverhampton City Council","http://opendatacommunities.org/id/metropolitan-district-council/wolverhampton","710928","Yoo Recruit LTD","07576","1,638.92","Agency Staff","130182828","02/08/2017","Licensing","Licensing - Private Hire Vehicles","R1100"
"Wolverhampton City Council","http://opendatacommunities.org/id/metropolitan-district-council/wolverhampton","710928","Yoo Recruit LTD","07445","44.72","Agency Staff","130181620","02/08/2017","Markets","Wednesfield Street Market","R1100"
"Wolverhampton City Council","http://opendatacommunities.org/id/metropolitan-district-council/wolverhampton","710928","Yoo Recruit LTD","L2897","3,494.34","Agency Staff","130182456","02/08/2017","Safeguarding","Safeguarding Children","R1100"
"Wolverhampton City Council","http://opendatacommunities.org/id/metropolitan-district-council/wolverhampton","710928","Yoo Recruit LTD","07425","819.30","Agency Staff","130181600","02/08/2017","ICTS","Strategic ICTS (ICT Service Budget)","R1100"
"Wolverhampton City Council","http://opendatacommunities.org/id/metropolitan-district-council/wolverhampton","710928","Yoo Recruit LTD","L2915","1,251.09","TPP - Social Care Support Services","130182474","02/08/2017","Safeguarding","MCA General","R5501"
"Wolverhampton City Council","http://opendatacommunities.org/id/metropolitan-district-council/wolverhampton","710928","Yoo Recruit LTD","07548","371.11","Agency Staff","130182803","04/08/2017","The Hub","Payroll/HR","R1100"
"Wolverhampton City Council","http://opendatacommunities.org/id/metropolitan-district-council/wolverhampton","710928","Yoo Recruit LTD","07537","232.73","Agency Staff","130182794","04/08/2017","Specialist Support","Vulnerable Young Persons Team","R1100"
"Wolverhampton City Council","http://opendatacommunities.org/id/metropolitan-district-council/wolverhampton","710928","Yoo Recruit LTD","L2945","2,623.59","Agency Staff","130184766","16/08/2017","Child Protection","CIN/CP Social Work Unit - Area 1","R1100"
"Wolverhampton City Council","http://opendatacommunities.org/id/metropolitan-district-council/wolverhampton","710928","Yoo Recruit LTD","07780","788.19","Agency Staff","130184433","16/08/2017","School Planning & Resources","Special - Transport","R1100"
"Wolverhampton City Council","http://opendatacommunities.org/id/metropolitan-district-council/wolverhampton","710928","Yoo Recruit LTD","L2938","1,194.92","Agency Staff","130184759","16/08/2017","Adults Assessment & Care Management SLC","Supporting Life Choices","R1100"
"Wolverhampton City Council","http://opendatacommunities.org/id/metropolitan-district-council/wolverhampton","710928","Yoo Recruit LTD","L2904","2,607.88","Agency Staff","130182463","04/08/2017","Child Protection","CIN/CP Social Work Unit - Area 1","R1100"
"Wolverhampton City Council","http://opendatacommunities.org/id/metropolitan-district-council/wolverhampton","710928","Yoo Recruit LTD","07634","223.30","Agency Staff","130182881","04/08/2017","Customer Services","City Direct","R1100"
"Wolverhampton City Council","http://opendatacommunities.org/id/metropolitan-district-council/wolverhampton","710928","Yoo Recruit LTD","07609","440.30","Agency Staff","130182856","04/08/2017","Customer Services","City Direct","R1100"
"Wolverhampton City Council","http://opendatacommunities.org/id/metropolitan-district-council/wolverhampton","710928","Yoo Recruit LTD","07605","465.46","Agency Staff","130182852","04/08/2017","Safeguarding","Head of Service Quality and Safeguarding","R1100"
"Wolverhampton City Council","http://opendatacommunities.org/id/metropolitan-district-council/wolverhampton","710928","Yoo Recruit LTD","07844","466.81","Agency Staff","130184486","23/08/2017","Youth Offending","Youth Offending Team","R1100"
"Wolverhampton City Council","http://opendatacommunities.org/id/metropolitan-district-council/wolverhampton","710928","Yoo Recruit LTD","07406","1,235.33","Agency Staff","130181582","04/08/2017","Adult Education","Language Studies Delivery Area","R1100"
"Wolverhampton City Council","http://opendatacommunities.org/id/metropolitan-district-council/wolverhampton","710928","Yoo Recruit LTD","07564","806.23","Agency Staff","130182817","04/08/2017","Strategic Finance","Strategic Finance","R1100"
"Wolverhampton City Council","http://opendatacommunities.org/id/metropolitan-district-council/wolverhampton","710928","Yoo Recruit LTD","07593","422.17","Agency Staff","130182841","04/08/2017","Environmental Maintenance","Ground Maintenance East","R1100"
"Wolverhampton City Council","http://opendatacommunities.org/id/metropolitan-district-council/wolverhampton","710928","Yoo Recruit LTD","07531","44.72","Agency Staff","130182790","04/08/2017","Markets","Wednesfield Street Market","R1100"
"Wolverhampton City Council","http://opendatacommunities.org/id/metropolitan-district-council/wolverhampton","710928","Yoo Recruit LTD","07806","336.52","Agency Staff","130184453","16/08/2017","Business Continuity & Emergency Planning","Business Continuity & Emergency Planning","R1100"
"Wolverhampton City Council","http://opendatacommunities.org/id/metropolitan-district-council/wolverhampton","710928","Yoo Recruit LTD","07705","134.16","Agency Staff","130183715","16/08/2017","Parking Services","Shopmobility","R1100"
"Wolverhampton City Council","http://opendatacommunities.org/id/metropolitan-district-council/wolverhampton","710928","Yoo Recruit LTD","07824","44.72","Agency Staff","130184468","16/08/2017","Markets","Wolverhampton Indoor and Open Market","R1100"
"Wolverhampton City Council","http://opendatacommunities.org/id/metropolitan-district-council/wolverhampton","710928","Yoo Recruit LTD","07694","1,092.16","Agency Staff","130183705","16/08/2017","Corporate Communications","Communications & Marketing - General","R1100"
"Wolverhampton City Council","http://opendatacommunities.org/id/metropolitan-district-council/wolverhampton","710928","Yoo Recruit LTD","07771","322.17","Agency Staff","130184425","16/08/2017","Democratic Services","Mayoral Expenses","R1100"
"Wolverhampton City Council","http://opendatacommunities.org/id/metropolitan-district-council/wolverhampton","710928","Yoo Recruit LTD","07975","465.46","Agency Staff","130185764","23/08/2017","Independent Living Service","Telecare","R1100"
"Wolverhampton City Council","http://opendatacommunities.org/id/metropolitan-district-council/wolverhampton","710928","Yoo Recruit LTD","07918","484.33","Agency Staff","130185708","23/08/2017","Business Continuity & Emergency Planning","Business Continuity & Emergency Planning","R1100"
"Wolverhampton City Council","http://opendatacommunities.org/id/metropolitan-district-council/wolverhampton","710928","Yoo Recruit LTD","07951","377.40","Agency Staff","130185740","23/08/2017","School Planning & Resources","Technical Support","R1100"
"Wolverhampton City Council","http://opendatacommunities.org/id/metropolitan-district-council/wolverhampton","710928","Yoo Recruit LTD","07931","408.85","Agency Staff","130185721","23/08/2017","Environmental Maintenance","Graffiti Removal Team","R1100"
"Wolverhampton City Council","http://opendatacommunities.org/id/metropolitan-district-council/wolverhampton","710928","Yoo Recruit LTD","07935","342.00","Agency Staff","130185725","23/08/2017","Licensing","Licensing - Private Hire Vehicles","R1100"
"Wolverhampton City Council","http://opendatacommunities.org/id/metropolitan-district-council/wolverhampton","710928","Yoo Recruit LTD","07989","495.90","Agency Staff","130185778","23/08/2017","Licensing","Licensing - Private Hire Vehicles","R1100"
"Wolverhampton City Council","http://opendatacommunities.org/id/metropolitan-district-council/wolverhampton","710928","Yoo Recruit LTD","L2957","2,417.58","Agency Staff","130185310","23/08/2017","Adults Assessment & Care Management West","Hospital Team","R1100"
"Wolverhampton City Council","http://opendatacommunities.org/id/metropolitan-district-council/wolverhampton","710928","Yoo Recruit LTD","07037","1,024.00","TPP - Social Care Support Services","130184246","16/08/2017","Safeguarding","MCA General","R5501"
"Wolverhampton City Council","http://opendatacommunities.org/id/metropolitan-district-council/wolverhampton","710928","Yoo Recruit LTD","07653","723.96","Agency Staff","130182898","04/08/2017","Housing Revenue Account","Hostels / Outreach","R1100"
"Wolverhampton City Council","http://opendatacommunities.org/id/metropolitan-district-council/wolverhampton","710928","Yoo Recruit LTD","07582","982.63","Agency Staff","130182832","04/08/2017","Standards and Vulnerable Pupils","Music Support Team","R1100"
"Wolverhampton City Council","http://opendatacommunities.org/id/metropolitan-district-council/wolverhampton","710928","Yoo Recruit LTD","07577","554.61","Agency Staff","130182829","04/08/2017","Governance Services","Scrutiny","R1100"
"Wolverhampton City Council","http://opendatacommunities.org/id/metropolitan-district-council/wolverhampton","710928","Yoo Recruit LTD","07691","670.80","Agency Staff","130183702","23/08/2017","Fleet Services","Passenger Transport - General","R1100"
"Wolverhampton City Council","http://opendatacommunities.org/id/metropolitan-district-council/wolverhampton","710928","Yoo Recruit LTD","CAP1066","979.90","Agency Staff","130185092","23/08/2017","Adults Assessment & Care Management West","Adult Services � West","R1100"
"Wolverhampton City Council","http://opendatacommunities.org/id/metropolitan-district-council/wolverhampton","710928","Yoo Recruit LTD","CAP1099","1,208.55","Agency Staff","130185294","23/08/2017","Adults Assessment & Care Management West","Adult Services � West","R1100"
"Wolverhampton City Council","http://opendatacommunities.org/id/metropolitan-district-council/wolverhampton","710928","Yoo Recruit LTD","07855","427.88","Agency Staff","130184497","23/08/2017","School Planning & Resources","Technical Support","R1100"
"Wolverhampton City Council","http://opendatacommunities.org/id/metropolitan-district-council/wolverhampton","710928","Yoo Recruit LTD","07812","901.20","Agency Staff","130184457","23/08/2017","Headstart","Headstart - Learning Technologies Team","R1100"
"Wolverhampton City Council","http://opendatacommunities.org/id/metropolitan-district-council/wolverhampton","710928","Yoo Recruit LTD","I0735","8,621.75","Agency Staff","130184745","23/08/2017","Looked After Children","RAA - Regional Adoption Agency","R1100"
"Wolverhampton City Council","http://opendatacommunities.org/id/metropolitan-district-council/wolverhampton","710928","Yoo Recruit LTD","CAP1074","612.17","Agency Staff","130185100","23/08/2017","Looked After Children","Fostering Team & Allowances","R1100"
"Wolverhampton City Council","http://opendatacommunities.org/id/metropolitan-district-council/wolverhampton","710928","Yoo Recruit LTD","07767","1,319.24","Agency Staff","130184422","16/08/2017","Visitor Economy","Art Gallery Tea Room","R1100"
"Wolverhampton City Council","http://opendatacommunities.org/id/metropolitan-district-council/wolverhampton","710928","Yoo Recruit LTD","07859","464.20","Agency Staff","130184501","23/08/2017","Independent Living Service","Telecare","R1100"
"Wolverhampton City Council","http://opendatacommunities.org/id/metropolitan-district-council/wolverhampton","710928","Yoo Recruit LTD","CAP1091","1,055.16","Agency Staff","130185286","23/08/2017","Child Protection","Childrens with Disabilities Team","R1100"
"Wolverhampton City Council","http://opendatacommunities.org/id/metropolitan-district-council/wolverhampton","710928","Yoo Recruit LTD","L2934","1,606.23","Agency Staff","130184755","30/08/2017","Looked After Children","LAC Transitions Team","R1100"
"Wolverhampton City Council","http://opendatacommunities.org/id/metropolitan-district-council/wolverhampton","710928","Yoo Recruit LTD","07927","264.18","Agency Staff","130185717","30/08/2017","Customer Services","City Direct","R1100"
"Wolverhampton City Council","http://opendatacommunities.org/id/metropolitan-district-council/wolverhampton","710928","Yoo Recruit LTD","07184","462.32","Agency Staff","130179438","30/08/2017","Customer Services","City Direct","R1100"
"Wolverhampton City Council","http://opendatacommunities.org/id/metropolitan-district-council/wolverhampton","710928","Yoo Recruit LTD","07734","371.11","Agency Staff","130183741","30/08/2017","Customer Services","City Direct","R1100"
"Wolverhampton City Council","http://opendatacommunities.org/id/metropolitan-district-council/wolverhampton","710928","Yoo Recruit LTD","07906","741.64","Agency Staff","130185696","30/08/2017","Leisure Services","WV Active Catering - Central","R1100"
"Wolverhampton City Council","http://opendatacommunities.org/id/metropolitan-district-council/wolverhampton","710928","Yoo Recruit LTD","07832","993.82","Agency Staff","130184474","30/08/2017","Customer Services","City Direct","R1100"
"Wolverhampton City Council","http://opendatacommunities.org/id/metropolitan-district-council/wolverhampton","710928","Yoo Recruit LTD","07031","503.20","Agency Staff","130184240","30/08/2017","Customer Services","City Direct","R1100"
"Wolverhampton City Council","http://opendatacommunities.org/id/metropolitan-district-council/wolverhampton","710928","Yoo Recruit LTD","07836","459.17","Agency Staff","130184478","30/08/2017","Customer Services","City Direct","R1100"
"Wolverhampton City Council","http://opendatacommunities.org/id/metropolitan-district-council/wolverhampton","710928","Yoo Recruit LTD","07979","465.46","Agency Staff","130185768","30/08/2017","Customer Services","City Direct","R1100"
"Wolverhampton City Council","http://opendatacommunities.org/id/metropolitan-district-council/wolverhampton","710928","Yoo Recruit LTD","07033","471.75","Agency Staff","130184242","30/08/2017","Customer Services","City Direct","R1100"
"Wolverhampton City Council","http://opendatacommunities.org/id/metropolitan-district-council/wolverhampton","710928","Yoo Recruit LTD","07854","724.46","Agency Staff","130184496","30/08/2017","Customer Services","City Direct","R1100"
"Wolverhampton City Council","http://opendatacommunities.org/id/metropolitan-district-council/wolverhampton","710928","Yoo Recruit LTD","07985","257.89","Agency Staff","130185774","30/08/2017","Customer Services","City Direct","R1100"
"Wolverhampton City Council","http://opendatacommunities.org/id/metropolitan-district-council/wolverhampton","710928","Yoo Recruit LTD","07897","698.91","Agency Staff","130185688","30/08/2017","Visitor Economy","Front of House","R1100"
"Wolverhampton City Council","http://opendatacommunities.org/id/metropolitan-district-council/wolverhampton","710928","Yoo Recruit LTD","07712","188.70","Agency Staff","130183971","18/08/2017","Leisure Services","Central Baths","R1100"
"Wolverhampton City Council","http://opendatacommunities.org/id/metropolitan-district-council/wolverhampton","710928","Yoo Recruit LTD","07604","520.59","Agency Staff","130182851","09/08/2017","Inclusion Support","Inclusion Support","R1100"
"Wolverhampton City Council","http://opendatacommunities.org/id/metropolitan-district-council/wolverhampton","710928","Yoo Recruit LTD","L2900","707.78","Agency Staff","130182459","09/08/2017","Looked After Children","Fostering Team & Allowances","R1100"
"Wolverhampton City Council","http://opendatacommunities.org/id/metropolitan-district-council/wolverhampton","710928","Yoo Recruit LTD","CAP1044","12,422.58","Agency Staff","130183133","09/08/2017","Looked After Children","Adoption and Residence Team & Allowances","R1100"
"Wolverhampton City Council","http://opendatacommunities.org/id/metropolitan-district-council/wolverhampton","710928","Yoo Recruit LTD","07614","819.30","Agency Staff","130182861","09/08/2017","ICTS","Strategic ICTS (ICT Service Budget)","R1100"
"Wolverhampton City Council","http://opendatacommunities.org/id/metropolitan-district-council/wolverhampton","710928","Yoo Recruit LTD","CAP1048","822.42","Agency Staff","130183336","09/08/2017","Child Protection","Childrens with Disabilities Team","R1100"
"Wolverhampton City Council","http://opendatacommunities.org/id/metropolitan-district-council/wolverhampton","710928","Yoo Recruit LTD","07521","724.46","Agency Staff","130183499","09/08/2017","Safeguarding","Safeguarding & Quality Administration","R1100"
"Wolverhampton City Council","http://opendatacommunities.org/id/metropolitan-district-council/wolverhampton","710928","Yoo Recruit LTD","CAP1063","1,151.84","Agency Staff","130185089","18/08/2017","Looked After Children","LAC Transitions Team","R1100"
"Wolverhampton City Council","http://opendatacommunities.org/id/metropolitan-district-council/wolverhampton","710928","Yoo Recruit LTD","07643","683.24","Agency Staff","130182888","09/08/2017","Legal Services","Legal Services","R1100"
"Wolverhampton City Council","http://opendatacommunities.org/id/metropolitan-district-council/wolverhampton","710928","Yoo Recruit LTD","CAP1076","1,060.56","Agency Staff","130185102","18/08/2017","Child Protection","Childrens with Disabilities Team","R1100"
"Wolverhampton City Council","http://opendatacommunities.org/id/metropolitan-district-council/wolverhampton","710928","Yoo Recruit LTD","07287","342.80","Agency Staff","130180767","09/08/2017","Looked After Children","Adoption and Residence Team & Allowances","R1100"
"Wolverhampton City Council","http://opendatacommunities.org/id/metropolitan-district-council/wolverhampton","710928","Yoo Recruit LTD","CAP1058","655.45","Agency Staff","130183346","09/08/2017","Child Protection","Childrens with Disabilities Team","R1100"
"Wolverhampton City Council","http://opendatacommunities.org/id/metropolitan-district-council/wolverhampton","710928","Yoo Recruit LTD","07214","465.46","Agency Staff","130179464","09/08/2017","Democratic Services","Register Office","R1100"
"Wolverhampton City Council","http://opendatacommunities.org/id/metropolitan-district-council/wolverhampton","710928","Yoo Recruit LTD","07649","270.47","Agency Staff","130182894","09/08/2017","Leisure Services","WV Active Business Support","R1100"
"Wolverhampton City Council","http://opendatacommunities.org/id/metropolitan-district-council/wolverhampton","710928","Yoo Recruit LTD","07761","465.46","Agency Staff","130183766","09/08/2017","Early Intervention","HOS Early Intervention","R1100"
"Wolverhampton City Council","http://opendatacommunities.org/id/metropolitan-district-council/wolverhampton","710928","Yoo Recruit LTD","07724","479.71","Agency Staff","130183731","18/08/2017","School Planning & Resources","Pupil & Student Support","R1100"
"Wolverhampton City Council","http://opendatacommunities.org/id/metropolitan-district-council/wolverhampton","710928","Yoo Recruit LTD","I0731","1,552.50","Agency Staff","130184741","18/08/2017","Looked After Children","RAA - Regional Adoption Agency","R1100"
"Wolverhampton City Council","http://opendatacommunities.org/id/metropolitan-district-council/wolverhampton","710928","Yoo Recruit LTD","C0359","-475.15","Agency Staff","130185283","18/08/2017","Cleaning","Cleaning of Buildings - General","R1100"
"Wolverhampton City Council","http://opendatacommunities.org/id/metropolitan-district-council/wolverhampton","710928","Yoo Recruit LTD","07708","675.48","Agency Staff","130183970","18/08/2017","Housing Revenue Account","Hostels / Outreach","R1100"
"Wolverhampton City Council","http://opendatacommunities.org/id/metropolitan-district-council/wolverhampton","710928","Yoo Recruit LTD","CAP1084","833.67","TPP - Social Care Support Services","130185110","18/08/2017","Safeguarding","MCA General","R5501"
"Wolverhampton City Council","http://opendatacommunities.org/id/metropolitan-district-council/wolverhampton","710928","Yoo Recruit LTD","L2956","2,607.89","Agency Staff","130185309","18/08/2017","Looked After Children","Looked After Team 1","R1100"
"Wolverhampton City Council","http://opendatacommunities.org/id/metropolitan-district-council/wolverhampton","710928","Yoo Recruit LTD","07555","704.88","Agency Staff","130182809","18/08/2017","School Planning & Resources","Pupil & Student Support","R1100"
"Wolverhampton City Council","http://opendatacommunities.org/id/metropolitan-district-council/wolverhampton","710928","Yoo Recruit LTD","07644","465.46","Agency Staff","130182889","09/08/2017","Revenues & Benefits","Debt Management","R1100"
"Wolverhampton City Council","http://opendatacommunities.org/id/metropolitan-district-council/wolverhampton","710928","Yoo Recruit LTD","07298","439.56","Agency Staff","130180540","09/08/2017","Environmental Maintenance","Parks - Ranger Service","R1100"
"Wolverhampton City Council","http://opendatacommunities.org/id/metropolitan-district-council/wolverhampton","710928","Yoo Recruit LTD","07173","503.20","Agency Staff","130179429","09/08/2017","School Planning & Resources","Special - Transport","R1100"
"Wolverhampton City Council","http://opendatacommunities.org/id/metropolitan-district-council/wolverhampton","710928","Yoo Recruit LTD","07500","283.05","Agency Staff","130181674","09/08/2017","Customer Services","City Direct","R1100"
"Wolverhampton City Council","http://opendatacommunities.org/id/metropolitan-district-council/wolverhampton","710928","Yoo Recruit LTD","07437","226.44","Agency Staff","130181612","09/08/2017","Customer Services","City Direct","R1100"
"Wolverhampton City Council","http://opendatacommunities.org/id/metropolitan-district-council/wolverhampton","710928","Yoo Recruit LTD","07407","301.92","Agency Staff","130181583","09/08/2017","Customer Services","City Direct","R1100"
"Wolverhampton City Council","http://opendatacommunities.org/id/metropolitan-district-council/wolverhampton","710928","Yoo Recruit LTD","07327","496.91","Agency Staff","130180565","09/08/2017","Customer Services","City Direct","R1100"
"Wolverhampton City Council","http://opendatacommunities.org/id/metropolitan-district-council/wolverhampton","710928","Yoo Recruit LTD","07739","132.09","Agency Staff","130183746","11/08/2017","Legal Services","Legal Services","R1100"
"Wolverhampton City Council","http://opendatacommunities.org/id/metropolitan-district-council/wolverhampton","710928","Yoo Recruit LTD","07732","366.79","Agency Staff","130183739","11/08/2017","Visitor Economy","The Little Civic","R1100"
"Wolverhampton City Council","http://opendatacommunities.org/id/metropolitan-district-council/wolverhampton","710928","Yoo Recruit LTD","07716","264.18","Agency Staff","130183724","11/08/2017","Leisure Services","WV Active Business Support","R1100"
"Wolverhampton City Council","http://opendatacommunities.org/id/metropolitan-district-council/wolverhampton","710928","Yoo Recruit LTD","07591","422.17","Agency Staff","130182839","09/08/2017","Environmental Maintenance","Ground Maintenance East","R1100"
"Wolverhampton City Council","http://opendatacommunities.org/id/metropolitan-district-council/wolverhampton","710928","Yoo Recruit LTD","CAP1046","471.63","TPP - Social Care Support Services","130183334","09/08/2017","Safeguarding","MCA General","R5501"
"Wolverhampton City Council","http://opendatacommunities.org/id/metropolitan-district-council/wolverhampton","710928","Yoo Recruit LTD","07474","465.46","Agency Staff","130181649","09/08/2017","Democratic Services","Register Office","R1100"
"Wolverhampton City Council","http://opendatacommunities.org/id/metropolitan-district-council/wolverhampton","710928","Yoo Recruit LTD","07647","402.56","Agency Staff","130182892","09/08/2017","Corporate Communications","Communications & Marketing - General","R1100"
"Wolverhampton City Council","http://opendatacommunities.org/id/metropolitan-district-council/wolverhampton","710928","Yoo Recruit LTD","07553","2,538.02","Agency Staff","130183106","09/08/2017","Leisure Services","Central Baths","R1100"
"Wolverhampton City Council","http://opendatacommunities.org/id/metropolitan-district-council/wolverhampton","710928","Yoo Recruit LTD","07638","1,118.18","Agency Staff","130183505","09/08/2017","Leisure Services","WV Active Catering - Central","R1100"
"Wolverhampton City Council","http://opendatacommunities.org/id/metropolitan-district-council/wolverhampton","710928","Yoo Recruit LTD","07737","378.41","Agency Staff","130183744","09/08/2017","Legal Services","Legal Services","R1100"
"Wolverhampton City Council","http://opendatacommunities.org/id/metropolitan-district-council/wolverhampton","710928","Yoo Recruit LTD","07688","901.20","Agency Staff","130183699","09/08/2017","Headstart","Headstart - Learning Technologies Team","R1100"
"Wolverhampton City Council","http://opendatacommunities.org/id/metropolitan-district-council/wolverhampton","710928","Yoo Recruit LTD","06944","1,172.38","Agency Staff","130177475","09/08/2017","Leisure Services","Central Baths","R1100"
"Wolverhampton City Council","http://opendatacommunities.org/id/metropolitan-district-council/wolverhampton","710928","Yoo Recruit LTD","07198","707.42","Agency Staff","130179448","09/08/2017","Leisure Services","Central Baths","R1100"
"Wolverhampton City Council","http://opendatacommunities.org/id/metropolitan-district-council/wolverhampton","710928","Yoo Recruit LTD","CAP1047","1,073.16","Agency Staff","130183335","09/08/2017","Child Protection","Childrens with Disabilities Team","R1100"
"Wolverhampton City Council","http://opendatacommunities.org/id/metropolitan-district-council/wolverhampton","710928","Yoo Recruit LTD","07617","2,955.07","Agency Staff","130182864","09/08/2017","Human Resources","HR Investigations","R1100"
"Wolverhampton City Council","http://opendatacommunities.org/id/metropolitan-district-council/wolverhampton","710928","Yoo Recruit LTD","07616","465.46","Agency Staff","130182863","09/08/2017","Looked After Children","Fostering Team & Allowances","R1100"
"Wolverhampton City Council","http://opendatacommunities.org/id/metropolitan-district-council/wolverhampton","710928","Yoo Recruit LTD","CAP1030","1,290.06","Agency Staff","130183119","09/08/2017","Looked After Children","Looked After Team 1","R1100"
"Wolverhampton City Council","http://opendatacommunities.org/id/metropolitan-district-council/wolverhampton","710928","Yoo Recruit LTD","CAP1039","977.96","Agency Staff","130183128","09/08/2017","Adults Assessment & Care Management East","Assessment Team (East)","R1100"
"Wolverhampton City Council","http://opendatacommunities.org/id/metropolitan-district-council/wolverhampton","710928","Yoo Recruit LTD","07358","391.60","Agency Staff","130180596","09/08/2017","Customer Services","City Direct","R1100"
"Wolverhampton City Council","http://opendatacommunities.org/id/metropolitan-district-council/wolverhampton","710928","Yoo Recruit LTD","07556","465.46","Agency Staff","130182810","09/08/2017","Customer Services","City Direct","R1100"
"Wolverhampton City Council","http://opendatacommunities.org/id/metropolitan-district-council/wolverhampton","710928","Yoo Recruit LTD","07631","724.46","Agency Staff","130182878","09/08/2017","Youth Offending","Youth Offending Team","R1100"
"Wolverhampton City Council","http://opendatacommunities.org/id/metropolitan-district-council/wolverhampton","710928","Yoo Recruit LTD","07934","226.44","Agency Staff","130185724","30/08/2017","Customer Services","City Direct","R1100"
"Wolverhampton City Council","http://opendatacommunities.org/id/metropolitan-district-council/wolverhampton","710928","Yoo Recruit LTD","08029","215.06","Agency Staff","130186388","30/08/2017","Emergency Duty Team","Emergency Duty Team","R1100"
"Wolverhampton City Council","http://opendatacommunities.org/id/metropolitan-district-council/wolverhampton","710928","Yoo Recruit LTD","08077","182.56","Agency Staff","130186434","30/08/2017","Leisure Services","WV Active Catering - Central","R1100"
"Wolverhampton City Council","http://opendatacommunities.org/id/metropolitan-district-council/wolverhampton","710928","Yoo Recruit LTD","08002","868.84","Agency Staff","130186366","30/08/2017","Transportation","Advisory Road Markings and Disabled Bays","R1100"
"Wolverhampton City Council","http://opendatacommunities.org/id/metropolitan-district-council/wolverhampton","710928","Yoo Recruit LTD","08074","55.90","Agency Staff","130186431","30/08/2017","Markets","Wolverhampton Indoor and Open Market","R1100"
"Wolverhampton City Council","http://opendatacommunities.org/id/metropolitan-district-council/wolverhampton","710928","Yoo Recruit LTD","07338","569.25","Agency Staff","130180576","30/08/2017","Leisure Services","WV Active Business Support","R1100"
"Wolverhampton City Council","http://opendatacommunities.org/id/metropolitan-district-council/wolverhampton","710928","Yoo Recruit LTD","08037","1,329.30","Agency Staff","130186395","30/08/2017","Looked After Children","Adoption and Residence Team & Allowances","R1100"
"Wolverhampton City Council","http://opendatacommunities.org/id/metropolitan-district-council/wolverhampton","710928","Yoo Recruit LTD","07926","670.80","Agency Staff","130185716","30/08/2017","Fleet Services","Passenger Transport - General","R1100"
"Wolverhampton City Council","http://opendatacommunities.org/id/metropolitan-district-council/wolverhampton","710928","Yoo Recruit LTD","07973","465.46","Agency Staff","130185762","30/08/2017","Customer Services","City Direct","R1100"
"Wolverhampton City Council","http://opendatacommunities.org/id/metropolitan-district-council/wolverhampton","710928","Yoo Recruit LTD","I0726","1,380.00","Agency Staff","130181450","30/08/2017","Strategic Director People","Strategic Director People","R1100"
"Wolverhampton City Council","http://opendatacommunities.org/id/metropolitan-district-council/wolverhampton","710928","Yoo Recruit LTD","07991","451.30","Agency Staff","130185779","30/08/2017","Governance Services","Scrutiny","R1100"
"Wolverhampton City Council","http://opendatacommunities.org/id/metropolitan-district-council/wolverhampton","710928","Yoo Recruit LTD","CAP1032","647.35","Agency Staff","130183121","30/08/2017","Child Protection","Childrens with Disabilities Team","R1100"
"Wolverhampton City Council","http://opendatacommunities.org/id/metropolitan-district-council/wolverhampton","710928","Yoo Recruit LTD","CAP1094","655.45","Agency Staff","130185289","30/08/2017","Child Protection","Childrens with Disabilities Team","R1100"
"Wolverhampton City Council","http://opendatacommunities.org/id/metropolitan-district-council/wolverhampton","710928","Yoo Recruit LTD","07961","380.24","Agency Staff","130185750","30/08/2017","School Planning & Resources","Pupil & Student Support","R1100"
"Wolverhampton City Council","http://opendatacommunities.org/id/metropolitan-district-council/wolverhampton","710928","Yoo Recruit LTD","07956","465.46","Agency Staff","130185745","30/08/2017","Human Resources","HR Advice","R1100"
"Wolverhampton City Council","http://opendatacommunities.org/id/metropolitan-district-council/wolverhampton","710928","Yoo Recruit LTD","07948","2,381.97","Agency Staff","130185737","30/08/2017","Housing Revenue Account","Hostels / Outreach","R1100"
"Wolverhampton City Council","http://opendatacommunities.org/id/metropolitan-district-council/wolverhampton","710928","Yoo Recruit LTD","07908","323.94","Agency Staff","130185698","30/08/2017","Looked After Children","Adoption and Residence Team & Allowances","R1100"
"Wolverhampton City Council","http://opendatacommunities.org/id/metropolitan-district-council/wolverhampton","710928","Yoo Recruit LTD","07911","422.17","Agency Staff","130185701","25/08/2017","Environmental Maintenance","Ground Maintenance East","R1100"
"Wolverhampton City Council","http://opendatacommunities.org/id/metropolitan-district-council/wolverhampton","710928","Yoo Recruit LTD","07805","439.56","Agency Staff","130184452","25/08/2017","Environmental Maintenance","Parks - Ranger Service","R1100"
"Wolverhampton City Council","http://opendatacommunities.org/id/metropolitan-district-council/wolverhampton","710928","Yoo Recruit LTD","07988","1,228.80","TPP - Social Care Support Services","130185777","25/08/2017","Safeguarding","MCA General","R5501"
"Wolverhampton City Council","http://opendatacommunities.org/id/metropolitan-district-council/wolverhampton","710928","Yoo Recruit LTD","07953","606.06","Agency Staff","130185742","25/08/2017","Looked After Children","Pupil Premium","R1100"
"Wolverhampton City Council","http://opendatacommunities.org/id/metropolitan-district-council/wolverhampton","710928","Yoo Recruit LTD","07763","3,963.01","Agency Staff","130183768","11/08/2017","Learning Disability Provider","Duke Street Bungalows","R1100"
"Wolverhampton City Council","http://opendatacommunities.org/id/metropolitan-district-council/wolverhampton","710928","Yoo Recruit LTD","06961","465.46","Agency Staff","130177492","11/08/2017","Democratic Services","Register Office","R1100"
"Wolverhampton City Council","http://opendatacommunities.org/id/metropolitan-district-council/wolverhampton","710928","Yoo Recruit LTD","07658","5,461.60","Agency Staff","130183672","11/08/2017","Commercial Services","Corporate Procurement Unit","R1100"
"Wolverhampton City Council","http://opendatacommunities.org/id/metropolitan-district-council/wolverhampton","710928","Yoo Recruit LTD","07888","1,440.70","Agency Staff","130185679","25/08/2017","Looked After Children","Pupil Premium","R1100"
"Wolverhampton City Council","http://opendatacommunities.org/id/metropolitan-district-council/wolverhampton","710928","Yoo Recruit LTD","I0748","4,140.00","Agency Staff","130185961","25/08/2017","Strategic Director Place","Future Spaces Project Management","R1100"
"Wolverhampton City Council","http://opendatacommunities.org/id/metropolitan-district-council/wolverhampton","710928","Yoo Recruit LTD","I0730","4,427.50","Agency Staff","130184740","16/08/2017","City Development","Eastern Gateway","R1100"
"Wolverhampton City Council","http://opendatacommunities.org/id/metropolitan-district-council/wolverhampton","710928","Yoo Recruit LTD","07396","1,180.94","Agency Staff","130181572","11/08/2017","Leisure Services","Central Baths","R1100"
"Wolverhampton City Council","http://opendatacommunities.org/id/metropolitan-district-council/wolverhampton","710928","Yoo Recruit LTD","07630","2,888.50","Agency Staff","130182877","11/08/2017","Catering","Education Catering - General Overheads","R1100"
"Wolverhampton City Council","http://opendatacommunities.org/id/metropolitan-district-council/wolverhampton","710928","Yoo Recruit LTD","07676","422.17","Agency Staff","130183687","11/08/2017","Environmental Maintenance","Ground Maintenance East","R1100"
"Wolverhampton City Council","http://opendatacommunities.org/id/metropolitan-district-council/wolverhampton","710928","Yoo Recruit LTD","07752","493.77","Agency Staff","130183973","11/08/2017","Licensing","Licensing - Private Hire Vehicles","R1100"
"Wolverhampton City Council","http://opendatacommunities.org/id/metropolitan-district-council/wolverhampton","710928","Yoo Recruit LTD","CAP0965","3,051.28","Agency Staff","130183111","11/08/2017","Child Protection","CIN/CP Social Work Unit - Area 3","R1100"
"Wolverhampton City Council","http://opendatacommunities.org/id/metropolitan-district-council/wolverhampton","710928","Yoo Recruit LTD","CAP0978","1,525.64","Agency Staff","130183112","11/08/2017","Child Protection","CIN/CP Social Work Unit - Area 3","R1100"
"Wolverhampton City Council","http://opendatacommunities.org/id/metropolitan-district-council/wolverhampton","710928","Yoo Recruit LTD","CAP1042","907.14","Agency Staff","130183131","11/08/2017","Child Protection","CIN/CP Social Work Unit - Area 3","R1100"
"Wolverhampton City Council","http://opendatacommunities.org/id/metropolitan-district-council/wolverhampton","710928","Yoo Recruit LTD","07721","71.68","TPP - Social Care Support Services","130183728","11/08/2017","Safeguarding","MCA General","R5501"
"Wolverhampton City Council","http://opendatacommunities.org/id/metropolitan-district-council/wolverhampton","710928","Yoo Recruit LTD","07584","739.15","Agency Staff","130183669","11/08/2017","Looked After Children","Pupil Premium","R1100"
"Wolverhampton City Council","http://opendatacommunities.org/id/metropolitan-district-council/wolverhampton","710928","Yoo Recruit LTD","07874","449.67","Agency Staff","130184514","16/08/2017","Legal Services","Legal Services","R1100"
"Wolverhampton City Council","http://opendatacommunities.org/id/metropolitan-district-council/wolverhampton","710928","Yoo Recruit LTD","07777","593.30","Agency Staff","130184431","16/08/2017","Inclusion Support","Inclusion Support","R1100"
"Wolverhampton City Council","http://opendatacommunities.org/id/metropolitan-district-council/wolverhampton","710928","Yoo Recruit LTD","07561","724.46","Agency Staff","130182814","16/08/2017","Corporate Business Support","Corporate Programmes","R1100"
"Wolverhampton City Council","http://opendatacommunities.org/id/metropolitan-district-council/wolverhampton","710928","Yoo Recruit LTD","07718","465.46","Agency Staff","130183726","16/08/2017","Human Resources","HR Advice","R1100"
"Wolverhampton City Council","http://opendatacommunities.org/id/metropolitan-district-council/wolverhampton","710928","Yoo Recruit LTD","07791","422.17","Agency Staff","130184441","16/08/2017","Environmental Maintenance","Ground Maintenance East","R1100"
"Wolverhampton City Council","http://opendatacommunities.org/id/metropolitan-district-council/wolverhampton","710928","Yoo Recruit LTD","05993","277.02","Agency Staff","130169260","16/08/2017","Learning Disability Provider","Ernest Bold Court","R1100"
"Wolverhampton City Council","http://opendatacommunities.org/id/metropolitan-district-council/wolverhampton","710928","Yoo Recruit LTD","07679","838.65","Agency Staff","130183690","16/08/2017","Leisure Services","Aldersley Leisure Village","R1100"
"Wolverhampton City Council","http://opendatacommunities.org/id/metropolitan-district-council/wolverhampton","710928","Yoo Recruit LTD","07667","422.17","Agency Staff","130183679","16/08/2017","Environmental Maintenance","Ground Maintenance East","R1100"
"Wolverhampton City Council","http://opendatacommunities.org/id/metropolitan-district-council/wolverhampton","710928","Yoo Recruit LTD","07039","389.12","TPP - Social Care Support Services","130184248","16/08/2017","Safeguarding","MCA General","R5501"
"Wolverhampton City Council","http://opendatacommunities.org/id/metropolitan-district-council/wolverhampton","710928","Yoo Recruit LTD","07748","490.99","Agency Staff","130183755","16/08/2017","Licensing","Licensing - Private Hire Vehicles","R1100"
"Wolverhampton City Council","http://opendatacommunities.org/id/metropolitan-district-council/wolverhampton","710928","Yoo Recruit LTD","07828","134.16","Agency Staff","130184471","16/08/2017","Parking Services","Shopmobility","R1100"
"Wolverhampton City Council","http://opendatacommunities.org/id/metropolitan-district-council/wolverhampton","710928","Yoo Recruit LTD","07788","201.24","Agency Staff","130184438","16/08/2017","Parking Services","Shopmobility","R1100"
"Wolverhampton City Council","http://opendatacommunities.org/id/metropolitan-district-council/wolverhampton","710928","Yoo Recruit LTD","07661","257.14","Agency Staff","130183675","16/08/2017","Parking Services","Shopmobility","R1100"
